{"text_format":"2","workbook":"xlsx","n_sheets":1,"sheets":["Sheet1"],"not_rendered":{"charts":0,"images":0,"macros":0,"external_links":0,"defined_names":0,"comments":0,"pivot_tables":0},"unopened":[],"bounds":{"document_bytes":16777216,"sheet_cells":100000,"run_cost":"one","rows_first":2000,"rows_last":500,"rows_between":2000,"halvings":0,"cell_chars":16384,"cell_head_chars":4096},"cells_cut":0,"cells_raw":0,"read":"whole","date_system":"1900"}

{"sheet":"Sheet1","index":0,"n_rows":121,"n_cols":12,"rows_kept":121,"cut":false,"hidden":false,"merged":[]}
["Link",null,"Name","Straße","Ort","Kontakt","Mail","Telefon","mailto","Website",null,"Profil"]
["https://futureoffestivals.com/exhibitors/alextravagant-ug/",{"$f":"HYPERLINK(A2)","v":"https://futureoffestivals.com/exhibitors/alextravagant-ug/"},"Alextravagant UG","Helmkestr. 5a","30165 Hannover","Alexandra Weber","contact@alextravagant.com","+491747964434","contact@alextravagant.com","https://alextravagant.com/",{"$f":"HYPERLINK(J2)","v":"https://alextravagant.com/"},"Alextravagant ist ein Slow Fashion Label, das Musik und Mode miteinander verbindet. Modedesignerin Alexandra Weber kreiert besondere Produkte für die Bühne und den Merch-Stand. Statt im Container zu landen, werden alte Textilien zu trendigen Must-Haves – einzigartig, nachhaltig und innovativ. Alexandra teilt ihr Wissen in Workshops und Talks zu Themen wie Fast vs. Slow Fashion, Upcycling, Repair und Mending – und zeigt dabei, dass ein nachhaltiger Umgang mit unserer Kleidung Spaß machen kann.\n\n\n\n\n \nAlextravagant is a slow fashion label that combines music and fashion. Fashion designer Alexandra Weber creates unique pieces for the stage and the merch booth. Instead of ending up in the trash, old textiles are transformed into trendy must-haves – unique, sustainable, and innovative. Alexandra shares her knowledge in workshops and talks on topics such as fast vs. slow fashion, upcycling, repair, and mending – demonstrating that a sustainable approach to our clothing can be fun."]
["https://futureoffestivals.com/exhibitors/alpine-hearing-protection-2/",{"$f":"HYPERLINK(A3)","v":"https://futureoffestivals.com/exhibitors/alpine-hearing-protection-2/"},"Alpine Hearing Protection","Europalaan 40","3526KS Utrecht","Björn de Winter","consumer@alpinehearingprotection.com","+31633158797","consumer@alpinehearingprotection.com","https://www.alpinehearingprotection.com/",{"$f":"HYPERLINK(J3)","v":"https://www.alpinehearingprotection.com/"},"introductory text to follow\n\n\n\n\n \ntext to follow"]
["https://futureoffestivals.com/exhibitors/andreas-kosmowicz-e-k/",{"$f":"HYPERLINK(A4)","v":"https://futureoffestivals.com/exhibitors/andreas-kosmowicz-e-k/"},"Andreas Kosmowicz e.K.","Klingenstr. 22","4229 Leipzig","Katrin Weiske","hallo@festiware.eu","+4934139281989","hallo@festiware.eu","https://festiware.eu","https://festiware.eu","festiware – Festival-Management, das mitdenkt. Ob Crew-Planung, Programm, Tickets oder Volunteers: festiware verbindet alle Bereiche eures Festivals in einem System. Wählt die Module, die ihr braucht – und erweitert, wenn ihr wächst. So spart ihr Zeit, behaltet den Überblick und könnt euch auf das konzentrieren, was zählt: euer Festival.\n\n\n\n\n \n12:02 festiware – Festival management that thinks ahead. Crew scheduling, programming, tickets, volunteers: festiware connects every part of your festival in one system. Choose the modules you need – and expand as you grow. Save time, stay in control, and focus on what matters: your festival."]
["https://futureoffestivals.com/exhibitors/barthur-barcatering-gmbh/",{"$f":"HYPERLINK(A5)","v":"https://futureoffestivals.com/exhibitors/barthur-barcatering-gmbh/"},"Barthur Barcatering GmbH","Handwerkerstraße 24","15366 Dahlwitz-Hoppegarten","Hans Przytarski","hallo@barthur.de","+491776165553","hallo@barthur.de","https://www.barthur.de","https://www.barthur.de","Vorstellungstext folgt\n\n\n\n\n \nVorstellungstext folgt"]
["https://futureoffestivals.com/exhibitors/better-than-gmbh/",{"$f":"HYPERLINK(A6)","v":"https://futureoffestivals.com/exhibitors/better-than-gmbh/"},"Better Than GmbH","Neuköllnische Allee 80","12057 Berlin","Holger Wilke","invoice@betterthan.de","+4917634551497","invoice@betterthan.de","http://www.betterthan.de","http://www.betterthan.de","Fairstatus ist ein unverzichtbarer Bestandteil zur detaillierten Dokumentation und Steuerung von Bauprojekten an verschiedenen Standorten.  Die Software  kanalisiert die Kommunikation und fördert die Zusammenarbeit, indem sie Echtzeitaktualisierungen des Baufortschritts bietet und den Projektleitern einen umfassenden Ausführungsnachweis ermöglicht.  Durch die zentrale Datenverwaltung ersetzt FairStatus dezentrale Datenbanken und trägt so zu einer gesteigerten Effizienz und Datenintegrität bei.  Besonders bei der Koordination einer großen Anzahl von Baustellen und der Notwendigkeit  kurzer Reaktionszeiten und hoher Termintreue hat sich FairStatus als unverzichtbares Tool etabliert, das von unseren Kunden hoch geschätzt wird und bei der Unterstützung der Projektleitung im Bauablauf nicht mehr wegzudenken ist.   Die Herausforderung besteht darin, den Fortschritt von Baustellen an verschiedenen Standorten effizient zu überwachen und zu koordinieren.  Dabei muss die Kommunikation zwischen Teams und Teammitgliedern sichergestellt und alle relevanten Informationen in Echtzeit verfügbar gemacht werden.   Ein erster Schritt  zur Lösung dieser Herausforderung ist, eine zentrale Plattform wie FairStatus einzuführen, die eine effiziente Überwachung des Baufortschritts ermöglicht und eine  zuverlässige Anschlußkommunikation in den Teams gewährleistet.  Der nächste Schritt   zur Lösung dieser Herausforderung ist die Integration von Echtzeitaktualisierungen in FairStatus, um den Fortschritt der Baustellen kontinuierlich zu erfassen und den Teammitgliedern eine stets aktuelle Übersicht zu bieten. Dadurch wird eine effektive Koordination und schnelle Reaktion auf Veränderungen ermöglicht.   Der Baufortschritt  wird in FairStatus dargestellt, indem die Vor-Ort-Teams den aktuellen Status und erledigte Aufgaben direkt in die Software eingeben. Dadurch entsteht eine genaue und aktuelle Übersicht für die Projektleiter und Controller.   Die Vor-Ort-Teams haben die Möglichkeit den Status einer Aufgabe zu verändern, ein Problem zu melden oder eine Anmerkung für den Stand zu hinterlassen.  Diese Meldung wird mit Foto und Text übermittelt. Per Auswahl kann es als Problem oder Notiz definiert und die Empfängergruppe festgelegt werden.   Die Lösung von Problemen auf der Baustelle wird vereinfacht, indem die Software eine  direkte und effiziente Kommunikation ermöglicht. Probleme  werden in der Plattform erfasst und an die relevanten Personen weitergeleitet , um eine zeitnahe und zielgerichtete Lösungsfindung zu unterstützen.   Dokumentationen und Ausführungsnachweise werden alle informationen in der Datenbank von FairStatus systematisch archiviert und können  jederzeit mobil abgerufen werden.   Exceltabellen werden transponiert FairStatus  erweitert Excel und andere Tabellenkalkulationsprogramme, indem es deren Funktionen auf eine neue Ebene bringt.   Fairstatus ermöglicht eine effiziente Erfassung, Verwaltung und Aktualisierung von Baustellendaten in Echtzeit, eine verbesserte Datenverwaltung sowie  eine prinzipiell störungsfreie Kommunikation gewährleistet.   Kollaboration und Rechtemanagement Innerhalb der FairStatus-Plattform wird eine effektive Zusammenarbeit zwischen verschiedenen Gewerken ermöglicht. Durch das Rechtemanagement haben unterschiedliche Nutzer verschiedene Aktionen und Interaktionsmöglichkeiten entsprechend ihrer Rolle und Verantwortung.   Dies fördert eine effizientere Zusammenarbeit und ermöglicht den Austausch von Informationen und Aufgaben zwischen den beteiligten Parteien wie Architekten, Ingenieuren, Bauleitern und Monteuren.  Die individuellen Zugriffsrechte gewährleisten eine sichere und kontrollierte Kollaboration, während gleichzeitig die Effizienz und Produktivität der verschiedenen Aufgaben maximiert werden.   Individualisierung und Schnittstellen zu bestehenden Systemen FairStatus ermöglicht die Integration von Daten aus bestehenden Systemen und die problemlose Anbindung an vorhandene Datenbanken über digitale Schnittstellen.   Dadurch können Daten direkt übernommen und synchronisiert werden, was eine effiziente Nutzung bereits vorhandener  Ressourcen ermöglicht.   Die Software agiert als Verbindungsglied zwischen verschiedenen Datenquellen und ermöglicht einen digitalen Datenaustausch ohne aufwendige manuelle Übertragungsprozesse.\n\n\n\n\n \nFairstatus is an indispensable tool for the detailed documentation and management of construction projects across multiple sites.  The software  streamlines communication and promotes collaboration by providing real-time updates on construction progress and enabling project managers to maintain a comprehensive record of works carried out.  Through centralised data management, FairStatus replaces decentralised databases, thereby contributing to increased efficiency and data integrity.  Particularly when coordinating a large number of construction sites and given the need for  short response times and strict adherence to deadlines, FairStatus has established itself as an indispensable tool that is highly valued by our customers and has become indispensable in supporting project management throughout the construction process. The challenge lies in efficiently monitoring and coordinating progress at construction sites across different locations.  This requires ensuring communication between teams and team members, whilst making all relevant information available in real time. A first step  towards addressing this challenge is to introduce a central platform such as FairStatus, which enables efficient monitoring of construction progress and ensures  reliable communication within the teams. The next step   towards addressing this challenge is to integrate real-time updates into FairStatus, so that progress on construction sites can be continuously tracked and team members are provided with an up-to-date overview at all times. This enables effective coordination and a rapid response to changes. Construction progress  is displayed in FairStatus as on-site teams enter the current status and completed tasks directly into the software. This provides an accurate and up-to-date overview for project managers and controllers. The on-site teams have the option to change the status of a task, report a problem or leave a comment regarding the current status. This report is submitted with a photo and text. It can be defined as a problem or a note via a selection, and the recipient group can be specified. The resolution of problems on the construction site is simplified as the software enables direct and efficient communication. Problems are recorded in the platform and forwarded to the relevant individuals to support the timely and targeted identification of solutions. Documentation and proof of execution: all information is systematically archived in the FairStatus database and can be accessed on mobile devices at any time. Excel spreadsheets are transposed FairStatus extends Excel and other spreadsheet programmes by taking their functions to a new level FairStatus enables the efficient collection, management and updating of construction site data in real time, improves data management and ensures essentially seamless communication Collaboration and access management The FairStatus platform facilitates effective collaboration between different trades. Through access management, different users have different actions and interaction options according to their role and responsibilities.  This promotes more efficient collaboration and enables the exchange of information and tasks between the parties involved, such as architects, engineers, site managers and fitters.  Individual access rights ensure secure and controlled collaboration, whilst simultaneously maximising the efficiency and productivity of the various tasks. Customisation and interfaces with existing systems FairStatus enables the integration of data from existing systems and seamless connection to existing databases via digital interfaces.  This allows data to be imported and synchronised directly, enabling the efficient use of existing resources. The software acts as a link between different data sources and enables digital data exchange without the need for time-consuming manual transfer processes."]
["https://futureoffestivals.com/exhibitors/bf-mietservice-gmbh/",{"$f":"HYPERLINK(A7)","v":"https://futureoffestivals.com/exhibitors/bf-mietservice-gmbh/"},"B&F Mietservice GmbH","Am Söterberg 2","66620 Nonnweiler","Nadine Meyer","info@buf.gmbh","+4968729653925","info@buf.gmbh","https://www.bufmietservice.de/","https://www.bufmietservice.de/","Ob Festival, Stadtfest oder Mega-Event – wir sorgen dafür, dass alles läuft! Mit hochwertigen Fahrplatten und passendem Zubehör schaffen wir sichere Wege, Zufahrten und Standflächen. Seit Jahren unterstützen wir Events in ganz Deutschland – flexibel, schnell und zuverlässig. Euer Event verdient einen stabilen Untergrund – und genau den liefern wir. Euer Event, unser Boden – lets go!\n\n\n\n\n \nFrom festivals and city fairs to large-scale events – weve got your ground covered! With our high-quality track mats and a wide range of site equipment, we create safe access routes, parking areas, and solid surfaces. For years, weve been supporting events all over Germany – fast, flexible, and reliable. Your event deserves a strong foundation – and thats exactly what we deliver!"]
["https://futureoffestivals.com/exhibitors/bhs-datensysteme-gmbh/",{"$f":"HYPERLINK(A8)","v":"https://futureoffestivals.com/exhibitors/bhs-datensysteme-gmbh/"},"BHS Datensysteme GmbH","Gewerbestrasse 5","5301 Eugendorf","Michael Breckner","mb@bhs.co.at","+436643388434","mb@bhs.co.at","http://www.löschwagen.com","http://www.löschwagen.com","LöschSystems BeerRobotics entwickelt innovative, robotikgestützte Ausschanklösungen für Stadien, Arenen und Großevents. Mit dem LöschWagen und dem LöschContainer BierRoboter kombinieren wir Robotik, Sensorik, KI und CloudTechnologie, um Ausschankprozesse zu automatisieren, Effizienz zu steigern und nachhaltige, skalierbare Systeme für die Eventgastronomie zu schaffen.\n\n\n\n\n \nLöschSystems BeerRobotics develops innovative, roboticsbased beverage dispensing solutions for stadiums, arenas, and large events. With the LöschWagen and LöschContainer Beer Robots, we combine robotics, sensor technology, AI, and cloud systems to automate dispensing processes, increase efficiency, and deliver sustainable, scalable solutions for the event hospitality industry."]
["https://futureoffestivals.com/exhibitors/blueprint-events-services-gmbh/",{"$f":"HYPERLINK(A9)","v":"https://futureoffestivals.com/exhibitors/blueprint-events-services-gmbh/"},"Blueprint Events & Services GmbH","Oberstr 110","51149 Köln","Melissa Sieber","m.sieber@blueprint-events.de","+4915777592699","m.sieber@blueprint-events.de","https://www.blueprint-events.de/","https://www.blueprint-events.de/","Vorstellungstext folgt\n\n\n\n\n \nVorstellungstext folgt"]
["https://futureoffestivals.com/exhibitors/blueprints-global-gmbh/",{"$f":"HYPERLINK(A10)","v":"https://futureoffestivals.com/exhibitors/blueprints-global-gmbh/"},"blueprints global GmbH","Borgmannstr. 2","44894 Bochum","Markus Weber","info@blueprints-global.eu","+491716262207","info@blueprints-global.eu","https://www.blueprints-global.eu","https://www.blueprints-global.eu","folgt\n\n\n\n\n \nfollows"]
["https://futureoffestivals.com/exhibitors/bordex-packaging/",{"$f":"HYPERLINK(A11)","v":"https://futureoffestivals.com/exhibitors/bordex-packaging/"},"Bordex Packaging","Schumanpark 67","7336AS Apeldoorn","Hilde Noija","whassink@bordex.nl","+31555996500","whassink@bordex.nl","https://www.bordexpackaging.nl/","https://www.bordexpackaging.nl/","Bordex Packaging is d bekerpartner voor festivals in heel West-Europa. Met het grootste assortiment PET-softcups en PP/PET-hardcups bieden wij eindeloze mogelijkheden voor ieder evenement. Onze bekers zijn stijlvol, praktisch en duurzaam, en volledig te personaliseren met uw logo of design. Perfect voor elk drankje, elke sfeer en elk merk. Kies voor zichtbaarheid en kwaliteit — klaar voor een nieuw festivalseizoen?\n\n\n\n\n \nBordex Packaging is the #1 cup partner for festivals across Western Europe. With the largest range of PET softcups and PP/PET hardcups, we offer endless options for every event. Our cups are stylish, practical, sustainable, and fully customizable with your logo or design. Perfect for any drink, any vibe, any brand. Choose visibility and quality — ready for a new festival season?"]
["https://futureoffestivals.com/exhibitors/buddycompass/",{"$f":"HYPERLINK(A12)","v":"https://futureoffestivals.com/exhibitors/buddycompass/"},"Buddycompass","Markgrafenstraße 2a","79541 Lörrach","Mark Faasen","Info@buddycompass.shop","+4915759293418","Info@buddycompass.shop","https://buddycompass.shop","https://buddycompass.shop","Mit Buddycompass findest du deine Lieblingsmenschen überall wieder. Schluss mit Funklöchern und leeren Handy-Akkus: Unser innovativer LED-Kompass ermöglicht die präzise Freundes-Ortung komplett offline und ohne Handy. Hergestellt in Deutschland mit viel Liebe und Passion. Festivals sind zum Tanzen da, nicht zum Suchen!\n\n\n\n\n \nStop Searching. Start Dancing. With Buddycompass, youll find your favorite people anywhere. No more dead zones, no more drained batteries. Our innovative LED compass lets you locate your crew completely offline—no phone required. Built in Germany with a lot of love and passion."]
["https://futureoffestivals.com/exhibitors/bundesverband-der-konzert-und-veranstaltungswirtschaft-bdkv-e-v/",{"$f":"HYPERLINK(A13)","v":"https://futureoffestivals.com/exhibitors/bundesverband-der-konzert-und-veranstaltungswirtschaft-bdkv-e-v/"},"Bundesverband der Konzert- und Veranstaltungswirtschaft (BDKV) e. V.","Georgsplatz 10","20099 Hamburg","Eleni Granitza","info@bdkv.de","+4940605338862","info@bdkv.de","https://bdkv.de/","https://bdkv.de/","Der BDKV ist als größte Interessenvertretung das Sprachrohr der deutschen Live-Branche gegenüber der Politik und setzt sich für die Stärkung ihres wirtschaftlichen Stellenwerts ein. Wir vertreten die Interessen der Konzert- und Veranstaltungsbranche in Deutschland und bündeln die Stimmen unserer Mitgliedsunternehmen aus dem Live-Entertainment, darunter Tournee-, Festival-, und/oder Örtliche Veranstalter*innen, Event- und Künstler*innen-Agenturen sowie Künstler*innen-Managements aller Sparten.  Ziel unseres Zusammenschlusses aus Firmen aller Größen und Genres ist, die Veranstaltungswirtschaft in dieser herausfordernden Zeit zukunftssicher und resilient zu machen. Unser umfangreiches Netzwerk bietet geballte Expertise, Informationen und Services.\n\n\n\n\n \nVorstellungstext folgt"]
["https://futureoffestivals.com/exhibitors/ceia-gmbh/",{"$f":"HYPERLINK(A14)","v":"https://futureoffestivals.com/exhibitors/ceia-gmbh/"},"CEIA GmbH","Peter-Sander-Str. 37A","55252 Wiesbaden","Christian Hickmann","christian.hickmann@ceia.net","+4961342109916","christian.hickmann@ceia.net","http://www.ceia.net","http://www.ceia.net","CEIA GmbH - Security Screening Technologies\n\n\n\n\n \nCEIA GmbH - Security Screening Technologies"]
["https://futureoffestivals.com/exhibitors/celebratix/",{"$f":"HYPERLINK(A15)","v":"https://futureoffestivals.com/exhibitors/celebratix/"},"Celebratix","Korte Leidsedwarsstraat 12","1072 AM Amsterdam","Timar Ebbinge","timar@celebratix.io","+31613288387","timar@celebratix.io","https://celebratix.io/","https://celebratix.io/","The Future of Ticketing\n\n\n\n\n \nThe Future of Ticketing"]
["https://futureoffestivals.com/exhibitors/chaanz-event-apps-that-satisfy/",{"$f":"HYPERLINK(A16)","v":"https://futureoffestivals.com/exhibitors/chaanz-event-apps-that-satisfy/"},"chaanz | Event Apps That Satisfy","Bockenheimer Landstraße 133","60325 Frankfurt am Main","Marwin Grundel","marwin@chaanz.com","+4915167330098","marwin@chaanz.com","https://chaanz.com","https://chaanz.com","Von HURRICANE und ROCK AM RING bis zum ADAC – führende Events und Unternehmen setzen auf unsere Event-Apps. Wir schaffen echten Mehrwert für Besucher*innen – 365 Tage im Jahr. Durch direkte Interaktion auf den Smartphones deiner Community bleiben sie dauerhaft aktiv, sodass du Tickets und Services für Brands das ganze Jahr über unabhängig verkaufen kannst. Leistungsstark. Individuell. Nahtlos integrierbar.\n\n\n\n\n \nFrom HURRICANE and ROCK AM RING to ADAC – leading events and companies trust our services. With years of experience and professional execution, we are your partner for successful events. Reliable, flexible, and quality-conscious."]
["https://futureoffestivals.com/exhibitors/clicclic/",{"$f":"HYPERLINK(A17)","v":"https://futureoffestivals.com/exhibitors/clicclic/"},"ClicClic","Lerchesbergring 107","60598 Frankfurt am Main","Georg Strohbücker","info@clicclic.de","+491725417999","info@clicclic.de","https://www.clicclic.de","https://www.clicclic.de","Vorstellungstext folgt\n\n\n\n\n \nVorstellungstext folgt"]
["https://futureoffestivals.com/exhibitors/cm-com/",{"$f":"HYPERLINK(A18)","v":"https://futureoffestivals.com/exhibitors/cm-com/"},"CM.com","Konijnenbergweg 24","4825 BD Breda","Edwin","edwin.gerritsen@cm.com","+31610069613","edwin.gerritsen@cm.com","https://www.cm.com/","https://www.cm.com/","CM.com\n\n\n\n\n \nCM.com"]
["https://futureoffestivals.com/exhibitors/concert-merchandising-gmbh/",{"$f":"HYPERLINK(A19)","v":"https://futureoffestivals.com/exhibitors/concert-merchandising-gmbh/"},"Concert Merchandising GmbH","Max-Eyth-Str. 11","74354 Besigheim","Jennifer","jenny.koch89@gmail.com","+49714396050","jenny.koch89@gmail.com","https://www.cmerch.de/","https://www.cmerch.de/","In enger Abstimmung mit dir kümmern wir uns um deine Merchandising Kollektion. Wir übernehmen alles was rund um deinen Merchandise Vertrieb anfällt – von der Auswahl und Gestaltung der Merch-Artikel über die Produktions- und Qualitätskontrolle bis hin zur Organisation des Verkaufs vor Ort auf deiner Tournee oder deinem Festival und darüber hinaus in einem Online Shop mit deinem Design.\n\n\n\n\n \nWe work closely with you to take care of your merchandising collection. We handle everything related to your merchandise sales—from selecting and designing the merchandise items to production and quality control to organizing on-site sales on your tour or at your festival and beyond in an online shop featuring your design."]
["https://futureoffestivals.com/exhibitors/consel-group-ag/",{"$f":"HYPERLINK(A20)","v":"https://futureoffestivals.com/exhibitors/consel-group-ag/"},"Consel Group AG","Brunaustrasse 185","8951 Fahrweid","Helen Burri","helen.burri@consel.ch","+41794726447","helen.burri@consel.ch","https://www.conselgroup.com","https://www.conselgroup.com","später\n\n\n\n\n \nspäter"]
["https://futureoffestivals.com/exhibitors/dd-bureau-fuer-veranstaltungswissen-gmbh/",{"$f":"HYPERLINK(A21)","v":"https://futureoffestivals.com/exhibitors/dd-bureau-fuer-veranstaltungswissen-gmbh/"},"D&D Bureau für Veranstaltungswissen GmbH","Oberasbach 4","51597 Morsbach","Dirk Ehlert Doumont","ded@personenklicker.de","+492294993864","ded@personenklicker.de","https://www.personenklicker.de","https://www.personenklicker.de","Personenklicker.de - Systeme zur Ermittlung zuverlässiger Besucherzahlen\n\n\n\n\n \nPersonenklicker.de - Systems for determining reliable visitor numbers"]
["https://futureoffestivals.com/exhibitors/earth-positive-future/",{"$f":"HYPERLINK(A22)","v":"https://futureoffestivals.com/exhibitors/earth-positive-future/"},"Earth Positive Future","The Black Church St. Mary’s Place","D07 P4AX Dublin","Jana","sales@earthpositivefuture.com","+491637836406","sales@earthpositivefuture.com","https://earthpositivefuture.com/","https://earthpositivefuture.com/","Introductory text to follow\n\n\n\n\n \nIntroductory text to follow"]
["https://futureoffestivals.com/exhibitors/egocentric-systems-gmbh/",{"$f":"HYPERLINK(A23)","v":"https://futureoffestivals.com/exhibitors/egocentric-systems-gmbh/"},"egocentric Systems GmbH","Herweghstraße 4","1157 Dresden","Cindy Schluck","info@egocentric-systems.de","+4915170134766","info@egocentric-systems.de","https://egocentric-systems.de/","https://egocentric-systems.de/","Unlock experiences and memories with digital ticketing solutions and custom merchandising for festivals and live events. egocentric Systems is the partner for sold-out events, supporting 400+ organizers with their online sales.  The highly customizable ticket shop delivers a seamless fan experience, while integrated sales and customer statistics enable data-driven decisions. Merchandising is the extension to connect access and memory — to bring your audience closer.  egocentric Systems ist represented together with egocentric Merchandising at booth J05, hall 4.\n\n\n\n\n \nUnlock experiences and memories with digital ticketing solutions and custom merchandising for festivals and live events. egocentric Systems is the partner for sold-out events, supporting 400+ organizers with their online sales.  The highly customizable ticket shop delivers a seamless fan experience, while integrated sales and customer statistics enable data-driven decisions. Merchandising is the extension to connect access and memory — to bring your audience closer.  egocentric Systems ist represented together with egocentric Merchandising at booth J05, hall 4."]
["https://futureoffestivals.com/exhibitors/elockers/",{"$f":"HYPERLINK(A24)","v":"https://futureoffestivals.com/exhibitors/elockers/"},"elockers","BASISWEG 59A","1043AN Amsterdam","Kees Sultan","info@elockers.io","+31642445452","info@elockers.io","https://www.elockers.io","https://www.elockers.io","Fast, secure, and intuitive self-service lockers\n\n\n\n\n \nelockers is the smart self-service locker solution for festivals, clubs, stadiums, and events worldwide. Our fully contactless system keeps belongings safe with fast, secure, and queue-free storage. Lockers Cashless Accreditation CRM"]
["https://futureoffestivals.com/exhibitors/emslandzelte-hoffmann-gmbh/",{"$f":"HYPERLINK(A25)","v":"https://futureoffestivals.com/exhibitors/emslandzelte-hoffmann-gmbh/"},"Emslandzelte Hoffmann GmbH","Am Alten Flugplatz 5","49811 Lingen","Susanne Hoffmann","emslandzelte@emslandzelte.de","+4959132179810","emslandzelte@emslandzelte.de","https://www.emslandzelte.de/","https://www.emslandzelte.de/","Wir sind ein mittelständiges Unternehmen ansässig in Lingen im Emsland. Seit vielen Jahren haben wir, die EMSLANDZELTE Hoffmann GmbH, einen erstklassigen Namen im Bereich der Großveranstaltungen, Messen, Festivals und vielen weiteren Events. Viele Veranstalter verlassen sich auf die Leistungsfähigkeit und den Service unseres erfahrenen Teams.  Unser Unternehmen bietet Ihnen nicht nur Zeltverleih, sondern Qualität, Kompetenz und Leistungsfähigkeit in ganz Deutschland und Europa..\n\n\n\n\n \nWe are a company based in Lingen, Lower Saxony. For many years, EMSLANDZELTE Hoffmann GmbH has enjoyed a first-class reputation in the field of large-scale events, trade fairs, festivals, and many other types of events. Numerous event organizers rely on the efficiency and service of our experienced team. Our company offers you not only tent rental, but also quality, expertise, and performance throughout Germany and Europe."]
["https://futureoffestivals.com/exhibitors/engstkabel-gmbh-co-kg/",{"$f":"HYPERLINK(A26)","v":"https://futureoffestivals.com/exhibitors/engstkabel-gmbh-co-kg/"},"engstKABEL GmbH & Co. KG","Erwitter Str. 151B","59557 Lippstadt","Nico Emde","nico.emde@engst-kabel.de","+4915125819195","nico.emde@engst-kabel.de","http://www.engst-kabel.de","http://www.engst-kabel.de","Die innovative Stromversorgung für euer nächstes Event! Die einzigartigen Kabelprodukte aus dem Hause engstKABEL machen eure Arbeiten leichter, schneller, effizienter und kostengünstiger. Die Leitungen bestehen aus hochfelxiblen, feindrahtigen Aluminium-Leitern und sind ummantelt mit hochwertigen Gummi- oder PUR-Materialien.  Das Lieferprogramm umfasst: tStarkstrom-Leitungen von 6 mm bis 500mm tCEE-Verlängerungen 32A, 63A und 125A tPOWERLOCK-kompatieble Steckverbinder bis 600A tAluminium-Anschlussmaterial\n\n\n\n\n \nInnovative power supply for your next event!  The unique cable products from engstKABEL make your work easier, faster, more efficient, and more cost-effective.  The cables consist of highly flexible, fine-stranded aluminum conductors and are sheathed with high-quality rubber or PUR materials.  The product range includes:   Heavy-duty power cables from 6 mm to 500 mm  CEE cable cords 32A, 63A, and 125A  POWERLOCK-compatible connectors up to 600A  Aluminum connection materials"]
["https://futureoffestivals.com/exhibitors/et-event-traffic/",{"$f":"HYPERLINK(A27)","v":"https://futureoffestivals.com/exhibitors/et-event-traffic/"},"ET Event Traffic","Kühnehöfe 20","22761 Hamburg","Maximilian Pauls","info@event-traffic.de","+4915734352560","info@event-traffic.de","https://event-traffic.de","https://event-traffic.de","ET Event Traffic bedient Veranstaltungen im gesamten deutschsprachigen Raum mit Fahrzeugsperren und Lösungen zur digitalen Parkraumbewirtschaftung. Installation und Betrieb von Fahrzeugsperren zum Schutz vor Überfahrten werden vor allem überall dort benötigt, wo Veranstaltungen direkte Schnittstellen zum öffentlichen Verkehrsraum mit Fahrzeugverkehr haben. Festivals, Umzüge, Straßen- und Volksfeste, Weihnachtsmärkte - mit den Fahrzeugsperren von ET Event Traffic können Zufahrten gesichert werden und behalten dabei durch die Mobilität der Sperren ihre Funktion als Rettungswege.\n\n\n\n\n \nET Event Traffic serves events throughout the German-speaking area with vehicle barriers and solutions for digital parking management. The installation and operation of vehicle barriers to prevent unauthorized access are particularly necessary wherever events intersect directly with public traffic areas. Festivals, parades, street and folk festivals, Christmas markets: with ET Event Traffic's vehicle barriers, access points can be secured while still maintaining their function as emergency routes thanks to the mobility of the barriers."]
["https://futureoffestivals.com/exhibitors/event-cam/",{"$f":"HYPERLINK(A28)","v":"https://futureoffestivals.com/exhibitors/event-cam/"},"Event-Cam","Spiegelstraße 4","79848 Bonndorf","Oliver Schäfer","info@event-cam.de","+491703544607","info@event-cam.de","https://event-cam.de","https://event-cam.de","Event-Cam ist ein junges Unternehmen, dass sich auf die Videoüberwachung und Personenzählung  bei Veranstaltungen spezialisiert hat. Mit unserer Mobilen Videoüberwachung ermöglichen wir eine Übersicht Ihres Veranstaltungsgeländes zu jeder Zeit. So können Gefahren schon vor der Entstehung erkannt werden. Eine Personenerfassung in Echtzeit sowie die Zählung verschiedener Zonen sind nur zwei der Vorteile der Personenzählung. Sie wissen immer wie viele Personen sich im ausgewählten Bereich aufhalten. Unsere Systeme haben wir für Sie an unserem Stand in Betrieb.\n\n\n\n\n \nEvent-Cam is a young company that specializes in video surveillance and people counting for events. With our mobile video surveillance, we enable an overview of your event site at any time. In this way, dangers can be recognized before they arise. Real-time person registration and the counting of different zones are just two of the advantages of people counting. You always know how many people are in the selected area. We have our systems in operation for you at our stand."]
["https://futureoffestivals.com/exhibitors/eventbande-gmbh/",{"$f":"HYPERLINK(A29)","v":"https://futureoffestivals.com/exhibitors/eventbande-gmbh/"},"Eventbande GmbH","Schneckenburgstr. 11","78467 Konstanz","Raphael Auer","post@eventbande.de","+491719805668","post@eventbande.de","http://www.eventbande.de","http://www.eventbande.de","Vorstellungstext folgt\n\n\n\n\n \nVorstellungstext folgt"]
["https://futureoffestivals.com/exhibitors/eventbro-gmbh/",{"$f":"HYPERLINK(A30)","v":"https://futureoffestivals.com/exhibitors/eventbro-gmbh/"},"eventbro GmbH","Am Markt 5","30938 Burgwedel","Lennart Bendick","lennart@eventbro.io","+4915565305358","lennart@eventbro.io","https://www.eventbro.io/","https://www.eventbro.io/","Hand aufs Herz: Niemand mag langes Anstehen für Drinks. Als erste Mobile-Ordering-Lösung speziell für Festivals zeigt eventbro, wie es besser geht. Eure Gäste bestellen Food und Getränke einfach per QR-Code im Browser – kein App-Zwang, kein Stress. Das bedeutet für euch: mehr Umsatz, entspannteres Personal und neue Werbeeinnahmen durch cleveres Sponsoring direkt im Menü. Besucht uns auf der Future of Festivals 2026 und macht eure Gastro endlich digital.\n\n\n\n\n \nLet's be real: Nobody likes waiting in line for drinks. As the first mobile ordering solution built specifically for festivals, eventbro shows how its done. Your guests order food and drinks via QR code directly in their browser – no app, no hassle. For you, this means higher revenue, a relaxed crew, and fresh sponsorship opportunities right inside the digital menu. Visit us at Future of Festivals 2026 and finally take your gastro digital."]
["https://futureoffestivals.com/exhibitors/eventenergie-deutschland-gmbh-co-kg/",{"$f":"HYPERLINK(A31)","v":"https://futureoffestivals.com/exhibitors/eventenergie-deutschland-gmbh-co-kg/"},"Eventenergie Deutschland GmbH & Co. KG","Thyssenstraße 10","56566 Andernach","Christian Ecker","info@eventenergie-deutschland.de","+492632309210","info@eventenergie-deutschland.de","https://www.eventenergie-deutschland.de","https://www.eventenergie-deutschland.de","Eventenergie Deutschland GmbH & Co. KG hat sich auf die mobile Stromversorgung für Veranstaltungen und temporäre Vorhaben spezialisiert und vermietet mit seiner Marke \"Mobillicht Deutschland\" auch flexible Beleuchtungsanlagen und Lichtmasten. Bei uns bekommen Sie ein großes Sortiment an Stromverteilern, Lichtlösungen und Stromerzeuger für Ihr Event aus einer Hand, mit einer persönlichen Betreuung und Kontrolle vor Ort. Wir stehen Ihnen mit einem klaren Fokus auf Zuverlässigkeit und Qualität als kompetenter Partner zur Seite!\n\n\n\n\n \nEventenergie Deutschland GmbH & Co. KG specializes in mobile power supply for events and temporary projects. With generators, power distribution, and lighting, we provide reliable energy for your event. Professional, flexible, and always on time."]
["https://futureoffestivals.com/exhibitors/eventnet-gmbh/",{"$f":"HYPERLINK(A32)","v":"https://futureoffestivals.com/exhibitors/eventnet-gmbh/"},"Eventnet GmbH","Urbanstraße 116","10967 Berlin","Philipp Liebisch","info@eventnet.de","+493060981182","info@eventnet.de","https://eventnet.de/","https://eventnet.de/","Vorstellungstext folgt\n\n\n\n\n \nVorstellungstext folgt"]
["https://futureoffestivals.com/exhibitors/feedback-show-systems-service-gmbh/",{"$f":"HYPERLINK(A33)","v":"https://futureoffestivals.com/exhibitors/feedback-show-systems-service-gmbh/"},"FeedBack Show Systems & Service GmbH","Konrad Zuse Str. 1f","52477 Alsdorf","Christof Backhaus","info@feedback.info","+492404922270","info@feedback.info","http://www.feedback.info","http://www.feedback.info","Seit fast 30 Jahren ist FeedBack technischer Partner im Live-Entertainment. Mit unserem umfangreichen Bestand an Equipment, eigener Logistik und einem hoch qualifizierten Team unterstützen wir Produzenten, Designer und Künstler bei der technischen Umsetzung ihrer Shows.\n\n\n\n\n \nFeedBack has been a technical partner in the field of live entertainment for almost 30 years. With our extensive stock of equipment, our own logistics and a highly qualified team, we support producers, designers and artists in the technical realization of their shows."]
["https://futureoffestivals.com/exhibitors/finizio-gmbh/",{"$f":"HYPERLINK(A34)","v":"https://futureoffestivals.com/exhibitors/finizio-gmbh/"},"Finizio GmbH","Ostender Höhen 70","16225 Eberswalde","Katharina Müller","info@finizio.de","+4915120213757","info@finizio.de","https://finizio.de/","https://finizio.de/","Finizio bietet mobile, innovative und ökologische Sanitärsysteme für Großveranstaltungen. Unsere Sanitärlösungen sind konzipiert for every Place and Body und funktionieren komplett autark. Und das ganz ohne Chemie: Urin und Kot werden getrennt und Stroh als Einstreu verwendet, dadurch werden Gerüche vermieden. Mit über 700 Toiletten je Fahrt sind die die falt- und stapelbaren Festivaltoiletten unübertroffen in Transporteffizienz.  Das i-Tüpfelchen: Wir recyceln die Ausscheidungen zu Humusdünger!\n\n\n\n\n \nFinizio offers mobile, innovative, and eco-friendly sanitation systems for large events. Our sanitation solutions are designed for every place and body and operate completely off the grid. And all without chemicals: urine and feces are separated and straw is used as a covering, preventing odors. With over 700 toilets per trip, the foldable and stackable festival toilets are unmatched in terms of transport efficiency. The icing on the cake: we recycle the waste into humus fertilizer!"]
["https://futureoffestivals.com/exhibitors/fjord-huetten-gmbh/",{"$f":"HYPERLINK(A35)","v":"https://futureoffestivals.com/exhibitors/fjord-huetten-gmbh/"},"Fjord Hütten GmbH","Bramstedtlunder Straße 7","25926 Bramstedtlund","Birger Kohls","post@fjord-huetten.de","+4946669898800","post@fjord-huetten.de","http://www.fjord-huetten.de","http://www.fjord-huetten.de","Vorstellungstext folgt\n\n\n\n\n \nVorstellungstext folgt"]
["https://futureoffestivals.com/exhibitors/fog-fireworks-sfx-gmbh/",{"$f":"HYPERLINK(A36)","v":"https://futureoffestivals.com/exhibitors/fog-fireworks-sfx-gmbh/"},"FOG fireworks + sfx GmbH","Glückauf-Ring 20","45699 Herten","Karo Schaefer","info@fogsfx.de","+492366583810","info@fogsfx.de","https://fogsfx.de/","https://fogsfx.de/","Die FOG Fireworks + SFX GmbH ist ein spezialisiertes Unternehmen für professionelle Pyrotechnik und Spezialeffekte. Das Team entwickelt und realisiert eindrucksvolle Feuerwerke sowie Bühnen- und Showeffekte für Events, Filmproduktionen und Veranstaltungen jeder Größe. Mit moderner Technik, kreativen Konzepten und höchsten Sicherheitsstandards sorgt FOG für unvergessliche visuelle Erlebnisse und maßgeschneiderte Inszenierungen.\n\n\n\n\n \nFOG Fireworks + SFX GmbH is a specialized company for professional pyrotechnics and special effects. The team designs and delivers impressive fireworks displays as well as stage and show effects for events, film productions, and productions of all sizes. Using modern technology, creative concepts, and high safety standards, FOG creates memorable visual experiences and customized show solutions."]
["https://futureoffestivals.com/exhibitors/foldtable/",{"$f":"HYPERLINK(A37)","v":"https://futureoffestivals.com/exhibitors/foldtable/"},"FoldTable","Wilhelminakanaal Zuid 140","4903 RA Oosterhout NB","Leonie Weise","info@foldtable.com","+31657619727","info@foldtable.com","https://www.foldtable.com","https://www.foldtable.com","FoldTable is the ideal event table, they are rock solid and stay where you place them. Whether it is on a damp field or uneven paving your venue remains neat and uncluttered. Eating, drinking or just sitting down: all requirements are met by FoldTable. With a tabletop that is wide enough to place two plates opposite each other and an easy to clean surface we can say for sure: these tables are “idiot-proof. The elegant, curvy and warm coloured wood makes the event tables very attractive. Naturally, a FoldTable is also comfortable. The seating height and depth have been carefully selected to permit maximum freedom of movement. The ingeniously designed frame ensures stability, easy access and is placed so far on the inside that wheelchair users can easily sit at the head of the table. FoldTables are designed and produced to last for years and years under the most demanding conditions, at the most extreme events all over the world.\n\n\n\n\n \nFoldTable is the ideal event table, they are rock solid and stay where you place them. Whether it is on a damp field or uneven paving your venue remains neat and uncluttered. Eating, drinking or just sitting down: all requirements are met by FoldTable. With a tabletop that is wide enough to place two plates opposite each other and an easy to clean surface we can say for sure: these tables are “idiot-proof. The elegant, curvy and warm coloured wood makes the event tables very attractive. Naturally, a FoldTable is also comfortable. The seating height and depth have been carefully selected to permit maximum freedom of movement. The ingeniously designed frame ensures stability, easy access and is placed so far on the inside that wheelchair users can easily sit at the head of the table. FoldTables are designed and produced to last for years and years under the most demanding conditions, at the most extreme events all over the world."]
["https://futureoffestivals.com/exhibitors/full-scope-gmbh/",{"$f":"HYPERLINK(A38)","v":"https://futureoffestivals.com/exhibitors/full-scope-gmbh/"},"Full Scope GmbH","Ludwig-Schön-Straße 6","84489 Burghausen","Matthias Hochwimmer","office@full-scope.de","+491711430433","office@full-scope.de","https://full-scope.de/","https://full-scope.de/","Vorstellungstext folgt\n\n\n\n\n \nVorstellungstext folgt"]
["https://futureoffestivals.com/exhibitors/gildan/",{"$f":"HYPERLINK(A39)","v":"https://futureoffestivals.com/exhibitors/gildan/"},"Gildan","Avenue Louise 65/11","1050 Brussels","Thomas Walther","twalther@gildan.com","+420724074440","twalther@gildan.com","https://www.gildan.com/eu/en/","https://www.gildan.com/eu/en/","Vorstellungstext folgt\n\n\n\n\n \nVorstellungstext folgt"]
["https://futureoffestivals.com/exhibitors/global-event-technologies-gmbh/",{"$f":"HYPERLINK(A40)","v":"https://futureoffestivals.com/exhibitors/global-event-technologies-gmbh/"},"Global Event Technologies GmbH","Am Ausfergenufer 8","5400 Hallein","Tim Moser","info@get.systems","+436645544323","info@get.systems","https://www.get.systems","https://www.get.systems","tbc\n\n\n\n\n \ntbc"]
["https://futureoffestivals.com/exhibitors/gpds-german-protect-defense-service-gmbh/",{"$f":"HYPERLINK(A41)","v":"https://futureoffestivals.com/exhibitors/gpds-german-protect-defense-service-gmbh/"},"GPDS GERMAN PROTECT & DEFENSE SERVICE GmbH","Päwesiner Weg 20","13581 Berlin","Mathias Zentner","mz@gpds.de","+491723098591","mz@gpds.de","http://www.gpds.de","http://www.gpds.de","folgt...\n\n\n\n\n \nfolgt..."]
["https://futureoffestivals.com/exhibitors/graffitimotion-gmbh/",{"$f":"HYPERLINK(A42)","v":"https://futureoffestivals.com/exhibitors/graffitimotion-gmbh/"},"GRAFFITIMOTION GMBH","Am südhang 9","55469 Riegenroth","Christoph Hartmann","Info@graffitimotion.de","+4917640212256","Info@graffitimotion.de","https://graffitimotion.de/","https://graffitimotion.de/","Graffitimotion.de  Graffitimotion.de ist eine Kreativagentur für Live-Graffiti, Street Art und interaktive Kunstformate auf Festivals und Events. Wir gestalten live vor Publikum großflächige Kunstwerke und bieten Graffiti-Workshops für Besucher an. Häufig verbinden wir beides mit elektronischer Musik unseres Künstlerprojekts „Glossyandglitch“, bei dem Live-Painting und DJ-Sets zu einer gemeinsamen Performance verschmelzen – ideal für Festivals wie das Glücksgefühle Festival.  Christoph Hartmann  Christoph Hartmann ist Gründer von Graffitimotion.de und seit vielen Jahren als Graffiti- und Live-Künstler aktiv. Er entwickelt kreative Kunstaktionen für Festivals, Events und Marken. Mit seinem Projekt „Glossyandglitch“ verbindet er Street Art mit elektronischer Musik und schafft so interaktive Kunst-Performances, bei denen Publikum, Musik und Live-Painting zusammenkommen.\n\n\n\n\n \nGraffitimotion.de  Graffitimotion.de is a creative agency specializing in live graffiti, street art, and interactive art formats for festivals and events. We create large-scale artworks live in front of an audience and offer graffiti workshops for visitors. Often we combine both with electronic music through our artist project “Glossyandglitch, where live painting and DJ sets merge into a unique performance – ideal for festivals such as the Glücksgefühle Festival.  Christoph Hartmann  Christoph Hartmann is the founder of Graffitimotion.de and has been active for many years as a graffiti and live artist. He develops creative art activations for festivals, events, and brands. With his project “Glossyandglitch, he combines street art with electronic music, creating interactive art performances where audience, music, and live painting come together."]
["https://futureoffestivals.com/exhibitors/greenbotaniq/",{"$f":"HYPERLINK(A43)","v":"https://futureoffestivals.com/exhibitors/greenbotaniq/"},"GreenBotanIQ","Robert-Lüttersweg 3","42349 Wuppertal","David Fresen","Info@greenbotaniq.de","+491781440834","Info@greenbotaniq.de","http://greenbotaniq.de","http://greenbotaniq.de","Kommt noch...\n\n\n\n\n \nComing soon"]
["https://futureoffestivals.com/exhibitors/guestoo-de-by-code-piraten-gmbh/",{"$f":"HYPERLINK(A44)","v":"https://futureoffestivals.com/exhibitors/guestoo-de-by-code-piraten-gmbh/"},"guestoo.de by Code Piraten GmbH","Am Ruhmbach 44","45149 Essen","Stefan Wirtz","support@guestoo.de","+491777833269","support@guestoo.de","https://www.guestoo.de","https://www.guestoo.de","Auf der Future of Festivals in Berlin zeigen wir dir, wie du mit guestoo dein Event-Management optimierst: einfache Registrierung, flexibles Ticketing und volle Kontrolle über deine Gästeliste. 100 % Datenschutz? Selbstverständlich! Als deutsches Unternehmen hosten wir auf Servern in Deutschland, sind ISO 27001 zertifiziert und vollständig DSGVO-konform. Komm vorbei und überzeuge dich selbst!\n\n\n\n\n \nAt Future of Festivals in Berlin, we'll show you how to optimize your event management with guestoo: simple registration, flexible ticketing, and full control over your guest list. 100% data protection? Of course! As a German company, we host on servers in Germany, are ISO 27001 certified, and are fully GDPR compliant. Come by and see for yourself!"]
["https://futureoffestivals.com/exhibitors/hkes-gmbh/",{"$f":"HYPERLINK(A45)","v":"https://futureoffestivals.com/exhibitors/hkes-gmbh/"},"HKES GmbH","Ahlinger Weg 4","27639 Wurster Nordseeküste","Christin Seyboth","info@hkes.de","+4915229382600","info@hkes.de","https://www.hkes.de/","https://www.hkes.de/","Unsere Geschäftsbereiche EVENTPRODUKTION, EVENTMODULBAU und EVENTLOGISTIK bieten Live-Kommunikation, Showproduktion, Veranstaltungsplanung, Logistikberatung, Sicherheits- und Verkehrskonzepte sowie komplette Infrastrukturlösungen für planungsintensive Großveranstaltungen. Mit norddeutschen Wurzeln und Büros in Hamburg, Leipzig, Cuxhaven und Offenburg, sowie bundesweiten Lager- und Logistikstandorten ist HKES als Dienstleister der Veranstaltungsbranche europaweit tätig.\n\n\n\n\n \nVorstellungstext folgt bzw. den aus dem letzten Jahr verwenden"]
["https://futureoffestivals.com/exhibitors/hoermann-kg-verkaufsgesellschaft/",{"$f":"HYPERLINK(A46)","v":"https://futureoffestivals.com/exhibitors/hoermann-kg-verkaufsgesellschaft/"},"Hörmann KG Verkaufsgesellschaft","Upheider Weg 94-98","33803 Steinhagen","Kristina Löwen","info@hoermann.de","+4952049155874","info@hoermann.de","https://www.hoermann.de/","https://www.hoermann.de/","Vorstellungstext folgt\n\n\n\n\n \nVorstellungstext folgt"]
["https://futureoffestivals.com/exhibitors/howden-deutschland-ag/",{"$f":"HYPERLINK(A47)","v":"https://futureoffestivals.com/exhibitors/howden-deutschland-ag/"},"Howden Deutschland AG","Bajuwarenring 4","82041 Oberhaching","Marco Pompili","marco.pompili@howdengroup.de","+491602459189","marco.pompili@howdengroup.de","https://www.howdengroup.com/de-de","https://www.howdengroup.com/de-de","\"Vorstellungstext folgt\"\n\n\n\n\n \n\"Vorstellungstext folgt\""]
["https://futureoffestivals.com/exhibitors/hydrogen-power-solutions-bv/",{"$f":"HYPERLINK(A48)","v":"https://futureoffestivals.com/exhibitors/hydrogen-power-solutions-bv/"},"Hydrogen Power Solutions BV","Meerweg 117","9752JE Haren","Cyriaan Teunissen","info@hydrogenpowersolutions.eu","+31614362409","info@hydrogenpowersolutions.eu","https://hydrogenpowersolutions.eu","https://hydrogenpowersolutions.eu","Hydrogen Power Solutions BV ontwikkelt de MHC, een modulaire hydrogen cassette voor veilige, betrouwbare en emissieloze energie op evenementen. De oplossing is stil, schaalbaar en eenvoudig inzetbaar, en levert schone stroom midden tussen mensen, ook op locaties waar netaansluiting ontbreekt of diesel niet gewenst is.\n\n\n\n\n \nHydrogen Power Solutions BV develops the MHC, a modular hydrogen cassette for safe, reliable and emission free energy at events. The solution is quiet, scalable and easy to deploy, delivering clean power among people, even where grid access is unavailable or diesel is not desired."]
["https://futureoffestivals.com/exhibitors/igpv-e-v-interessengemeinschaft-der-personaldienstleister-in-der-veranstaltungswirtschaft-e-v/",{"$f":"HYPERLINK(A49)","v":"https://futureoffestivals.com/exhibitors/igpv-e-v-interessengemeinschaft-der-personaldienstleister-in-der-veranstaltungswirtschaft-e-v/"},"IgPV e.V. | Interessengemeinschaft der Personaldienstleister in der Veranstaltungswirtschaft e.V.","Große Elbstraße 279","22767 Hamburg","Nicole Behr","office@igpv.org","+491722702299","office@igpv.org","http://www.igpv.org","http://www.igpv.org","Der IgPV e.V. ist der führende Verband der in Deutschland agierenden Unternehmen für professionelle Personalgestellung in sämtlichen Bereichen der Veranstaltungswirtschaft. Seine Mission ist es, Firmen dabei zu unterstützen, die besten Personaldienstleistungen anzubieten und gleichzeitig höchste Standards in der Veranstaltungsbranche hinsichtlich rechtlicher Grundlagen, Ausbildung und Arbeitssicherheit aufrechtzuerhalten und damit die Zukunft der Veranstaltungswirtschaft aktiv mitzugestalten.\n\n\n\n\n \nThe IgPV e.V. is the leading association of companies operating in Germany in the event insurance sector. We represent the interests of our members and promote quality and professionalism. Together for secure events."]
["https://futureoffestivals.com/exhibitors/ikast-etikett/",{"$f":"HYPERLINK(A50)","v":"https://futureoffestivals.com/exhibitors/ikast-etikett/"},"Ikast Etikett","Neptunvej 6","7430 Ikast","Kirsten Bæk Vestergaard","info@ikastetikett.de","+4951144394126","info@ikastetikett.de","https://www.ikastetikett.de/","https://www.ikastetikett.de/","Seit über 20 Jahren beliefern wir Festivals und Events mit Kontrollbändern – von klassischen Stoff- und Tyvek-Bändern bis hin zu exklusiven RFID-Lösungen. Persönliche Beratung und zuverlässige Lieferung inklusive.\n\n\n\n\n \nFor over 20 years, we have supplied festivals and events with control wristbands – from classic fabric and Tyvek wristbands to exclusive RFID solutions. Personal service and reliable delivery included."]
["https://futureoffestivals.com/exhibitors/indu-electric/",{"$f":"HYPERLINK(A51)","v":"https://futureoffestivals.com/exhibitors/indu-electric/"},"Indu-Electric","Am Henselsgraben 8","41470 Neuss","Michel Heinrichs","michel.heinrichs@Indu-Electric.com","+49492137950126","michel.heinrichs@Indu-Electric.com","https://www.indu-electric.de","https://www.indu-electric.de","INDU-ELECTRIC ist weltweit führender Hersteller von Stromverteiler-Systemen. Wir entwickeln und produzieren individuelle Lösungen nach Kundenvorgaben. Kunden weltweit vertrauen darauf: bei Olympischen Spielen und Weltmeisterschaften, in Filmstudios und auf Tourneen, bei Messen, in der Industrie und vielen weiteren Branchen. Nur bei uns werden Stromverteiler aus THERMOLENE gefertigt – für höchste Sicherheit, Langlebigkeit und Leistung.\n\n\n\n\n \nINDU-ELECTRIC is a world-leading manufacturer of power distribution systems. We design and produce custom solutions tailored to customer specifications. Clients worldwide rely on us: from Olympic Games and World Championships to film studios and tours, trade shows, industrial environments, and more. Only INDU-ELECTRIC manufactures power distributors from THERMOLENE – ensuring maximum safety, durability, and performance."]
["https://futureoffestivals.com/exhibitors/isdv-e-v/",{"$f":"HYPERLINK(A52)","v":"https://futureoffestivals.com/exhibitors/isdv-e-v/"},"isdv e.V.","Hanauer Landstr. 328-330","60314 Frankfurt am Main","Marc Stähly","info@isdv.net","+491782447625","info@isdv.net","https://www.isdv.net/","https://www.isdv.net/","Die Interessengemeinschaft der selbständigen DienstleisterInnen in der Veranstaltungswirtschaft e.V. versteht sich als Berufsverband für alle Menschen in den Bereichen: Veranstaltungstechnik, Tourmanagement, Pyrotechnik, Special Effects, Bühnenbau, Produktionsleitung, Fahrdienst, Logistik, technische Planung, Design, Catering, Eventagentur, Merchandise, Meisterei, Fachplanung Besuchersicherheit, Veranstaltungskaufleute, Backline, Veranstaltungsinfrastruktur, freies Booking, Kunst- Musikschaffende und viele mehr. All jene, die selbständige oder freiberufliche Dienstleistende in der Veranstaltungswirtschaft sind, haben durch die isdv eine Stimme und eine Lobby.\n\n\n\n\n \nThe interest group of independent service providers in the event industry eV sees itself as a professional association for all people in the areas: Event technology, tour management, pyrotechnics, special effects, stage construction, production management, driving service, logistics, technical planning, design, catering, event agency, merchandise, workshop, specialist planning for visitor safety, event managers, backline, event infrastructure, free booking, artists and musicians and many more. All those who are self-employed or freelance service providers in the event industry have a voice and a lobby through isdv."]
["https://futureoffestivals.com/exhibitors/japo-konzert-und-veranstaltungs-gmbh/",{"$f":"HYPERLINK(A53)","v":"https://futureoffestivals.com/exhibitors/japo-konzert-und-veranstaltungs-gmbh/"},"JAPO Konzert- und Veranstaltungs GmbH","Blankenauer Straße 61","9113 Chemnitz","Claudia Hohmann","info@japo.de","+491785642709","info@japo.de","https://www.japo.de/","https://www.japo.de/","Seit 30 Jahren ist die JAPO Konzert- und Veranstaltungs GmbH der zuverlässige Partner bei der Umsetzung von Konzerten, Festivals, Sportveranstaltungen, Firmenveranstaltungen und anderen Events. Unser Team realisiert jährlich über 1000 Veranstaltungen in ganz Deutschland. Unser Leistungsspektrum umfasst Eventorganisation, Vermietung, Personalvermittlung, Logistik und Casebau.\n\n\n\n\n \nFor 30 years, JAPO Konzert- und Veranstaltungs GmbH has been your reliable partner in the realization of concerts, festivals, sporting events, corporate events, and other events. Our team delivers over 1,000 events annually throughout Germany. Our range of services includes event organization, rental services, staffing, logistics, and case manufacturing."]
["https://futureoffestivals.com/exhibitors/kaiser-showtechnik-gmbh/",{"$f":"HYPERLINK(A54)","v":"https://futureoffestivals.com/exhibitors/kaiser-showtechnik-gmbh/"},"Kaiser Showtechnik GmbH","Steinerne Furt 88","86167 86167 Augsburg","Amanda Meca","a.meca@kaiser-showtechnik.de","+4982148040826","a.meca@kaiser-showtechnik.de","https://kaiser-showtechnik.de","https://kaiser-showtechnik.de","Die Firma Kaiser Showtechnik GmbH ist seit über 25 Jahren internationaler Dienstleister im Bereich der Veranstaltungstechnik. Neben der Vermietung und dem Full-Service für die technische Ausstattung von Veranstaltungen gehört seit vielen Jahren auch der Vertrieb von professioneller Veranstaltungstechnik dazu.\n\n\n\n\n \nDie Firma Kaiser Showtechnik GmbH ist seit über 25 Jahren internationaler Dienstleister im Bereich der Veranstaltungstechnik. Neben der Vermietung und dem Full-Service für die technische Ausstattung von Veranstaltungen gehört seit vielen Jahren auch der Vertrieb von professioneller Veranstaltungstechnik dazu."]
["https://futureoffestivals.com/exhibitors/koelnton-rental-gmbh-3/",{"$f":"HYPERLINK(A55)","v":"https://futureoffestivals.com/exhibitors/koelnton-rental-gmbh-3/"},"koelnton Rental GmbH","Paul-Henri-Spaak-Straße 18-22","51069 Köln","Marcel Gericke","info@koelnton.de","+4915142010488","info@koelnton.de","https://koelnton.de","https://koelnton.de","Die kölnton rental GmbH ist einer der führenden Dienstleister für die Entwicklung, Vermietung sowie den Verkauf von Funk-, Intercom- und Dolmetschertechnik.  Als Spezialist für temporäre Kommunikationslösungen unterstützen wir unsere Kunden seit mehr als 30 Jahren mit unserem Know-how und innovativen selbstentwickelten Produkten.  Die Planung und Umsetzung von europaweiten Sport-, Firmen-Events und Festivals erfolgt durch unsere Niederlassung in Berlin, Köln, Hannover und München. #wecreatecommunication\n\n\n\n\n \nkölnton rental GmbH is one of the leading service providers for the development, rental and sale of radio, intercom and interpreting technology.  As a specialist for temporary communication solutions, we have been supporting our customers for more than 30 years with our expertise and innovative products developed in-house.  Our branches in Berlin, Cologne, Hanover and Munich plan and realise sport, corporate events and festivals all over Europe. #wecreatecommunication"]
["https://futureoffestivals.com/exhibitors/konligo/",{"$f":"HYPERLINK(A56)","v":"https://futureoffestivals.com/exhibitors/konligo/"},"Konligo","Chaussée de Mons 95","1070 Brussels","Arnaud Dessilly","info@konligo.com","+32473181604","info@konligo.com","https://www.konligo.com/","https://www.konligo.com/","The new wave of foldable tents and stage roofs .\n\n\n\n\n \nIntroductory text to follow"]
["https://futureoffestivals.com/exhibitors/kulturkiste/",{"$f":"HYPERLINK(A57)","v":"https://futureoffestivals.com/exhibitors/kulturkiste/"},"Kulturkiste","Ostendstr. 19","64319 Pfungstadt","Philipp Wanders","info@cnc-commando.de","+4917610212678","info@cnc-commando.de","http://www.kulturkiste.eu","http://www.kulturkiste.eu","Case Commando ist eine Marke der CNC Commando GmbH und spezialisiert auf hochwertige Custom Cases. Das Hauptprodukt ist die Kulturkiste – ein modulares, mobiles Podium, das sich flexibel an unterschiedlichste Einsatzorte und Veranstaltungen anpasst. Robust, funktional und designed für alle Lagen.\n\n\n\n\n \nCase Commando is a brand of CNC Commando GmbH, specializing in high-quality custom cases. Its main product is the Kulturkiste – a modular, mobile stage designed for flexible use in a wide range of locations and event settings. Durable, functional, and built for every situation."]
["https://futureoffestivals.com/exhibitors/laserfabrik-gmbh/",{"$f":"HYPERLINK(A58)","v":"https://futureoffestivals.com/exhibitors/laserfabrik-gmbh/"},"laserfabrik GmbH","Beerstraße 12-14","50354 Hürth","Alina Wettengel","mail@laserfabrik.com","+492233994110","mail@laserfabrik.com","https://www.laserfabrik.com","https://www.laserfabrik.com","Die laserfabrik GmbH kann auf über 25 Jahre Erfahrung zurückblicken und ist Ihr zuverlässiger Partner bei der Produktion und Durchführung von High-Level Lasereinsätzen, Spezialeffekten sowie Wasserfontänen- und Netzwerktechnik auf der ganzen Welt. Wir betreuen Showproduktionen und Veranstaltungen jeder Größe mit größter Professionalität – von kleinen künstlerischen Ausstellungen über Fernsehproduktionen bis hin zu den größten europäischen Musikfestivals.\n\n\n\n\n \nlaserfabrik GmbH has over 25 years of experience and is your reliable partner for the production and implementation of high-level laser applications, special effects, water fountains, and network technology around the world. We provide professional support for show productions and events of all sizes—from small art exhibitions and television productions to the largest European music festivals."]
["https://futureoffestivals.com/exhibitors/light-sound-on-gmbh-co-kg/",{"$f":"HYPERLINK(A59)","v":"https://futureoffestivals.com/exhibitors/light-sound-on-gmbh-co-kg/"},"Light Sound ON GmbH & Co. KG","Otto Hahn Straße 10","78549 Spaichingen","Thomas Heinemann","info@ls-event.de","+4974246020810","info@ls-event.de","https://ls-event.de/","https://ls-event.de/","Driven by Passion: Dein Event - Unser Know-how Unsere Technik – Dein Erlebnis \"Alles kann, nichts muss!\" – das ist mehr als ein Motto. Es ist unsere Haltung. In unserer DNA steckt nicht nur technisches Know-how, sondern auch ein tiefes Verständnis für das, was wirklich zählt: Menschen, Ideen und Zusammenarbeit auf Augenhöhe. Wir begleiten Agenturen, Unternehmen, Messebauer und öffentliche Einrichtungen mit genau den Leistungen, die gebraucht werden – flexibel, zuverlässig und mit einem offenen Ohr für individuelle Anforderungen. Wir liefern Technik, Struktur und kreative Lösungen – oder übernehmen die komplette Planung für dein schlüsselfertiges Event oder deinen einsatzbereiten Messestand. Wir schaffen Räume, Erlebnisse und Begegnungen – mit Technik, die wirkt, und einem Team, das mitdenkt.\n\n\n\n\n \nDriven by Passion: Your Event – Our Expertise Our Technology – Your Experience “Everything is possible, nothing is mandatory! – this is more than just a motto. It is our attitude. Our DNA contains not only technical expertise, but also a deep understanding of what really matters: people, ideas, and cooperation on equal terms. We support agencies, companies, trade fair constructors, and public institutions with exactly the services they need – flexibly, reliably, and with an open ear for individual requirements. We deliver technology, structure, and creative solutions – or take over the entire planning for your turnkey event or ready-to-use exhibition stand. We create spaces, experiences, and encounters – with technology that works and a team that thinks ahead."]
["https://futureoffestivals.com/exhibitors/lila-luftballon-gmbh/",{"$f":"HYPERLINK(A60)","v":"https://futureoffestivals.com/exhibitors/lila-luftballon-gmbh/"},"Lila Luftballon GmbH","Krehlstraße 114","70565 Stuttgart","Johannes Alsheimer","info@lila-luftballon.de","+494915223210636","info@lila-luftballon.de","https://lila-luftballon.de/","https://lila-luftballon.de/","Wir sind Lila Luftballon, ein eingespieltes Team aus erfahrenen Veranstaltern mit fundierten Kenntnissen in den Bereichen Event-, Sicherheit- & Medienmanagement. Unsere Wurzeln liegen in der Festivalwelt – einem Umfeld, in dem Flexibilität, Belastbarkeit und kreative Problemlösung unverzichtbar sind. Unser Wissen und unsere Erfahrung bringen wir mittlerweile in ganz unterschiedliche Veranstaltungsformate ein – angepasst auf die individuellen Bedürfnisse Ihres Events.\n\n\n\n\n \nWe are Lila Luftballon, a skilled team of experienced event organizers with in-depth knowledge in the areas of event, security, and media management. Our roots are in the festival world—an environment where flexibility, resilience, and creative problem-solving are essential. We now apply our knowledge and experience to a wide variety of event formats, adapted to the individual needs of your event."]
["https://futureoffestivals.com/exhibitors/locker-company/",{"$f":"HYPERLINK(A61)","v":"https://futureoffestivals.com/exhibitors/locker-company/"},"Locker Company","Energiestraat 2b","5961 PT Horst","Paul van Rengs","info@lockercompany.nl","+31778515605","info@lockercompany.nl","http://www.lockercompany.nl","http://www.lockercompany.nl","Locker Company Eine positive Festivalerfahrung steckt im Detail. Besucher wünschen sich Freiheit, Komfort und Sicherheit, während Veranstalter nach intelligenten Lösungen suchen, die zu einer reibungslosen und zukunftssicheren Eventorganisation beitragen. Locker Company verbindet diese Welten mit innovativen Schließfachsystemen für Festivals und Events.  Wir sind spezialisiert auf die Bereitstellung flexibler, skalierbarer Schließfächer, die den Besuchern die Ruhe geben, das Event in vollen Zügen zu genießen. Kein Aufwand mit Taschen oder Wertgegenständen – stattdessen sorgenfreies Eintauchen in Musik, Kultur und Erlebnis. Mit unserem Know-how und unserer Erfahrung unterstützen wir Veranstalter bei einer besseren Besucherführung, weniger verlorenen Gegenständen und einer höheren Besucherzufriedenheit.  Locker Company arbeitet mit intelligenter Technologie und modularen Systemen, sodass unsere Schließfächer sowohl bei kleinen als auch bei groß angelegten Festivals problemlos eingesetzt werden können.  Auf der Future of Festivals zeigen wir, warum Locker Company mehr ist als nur ein Schließfachanbieter. Mit unseren Dienstleistungen, Produkten und Integrationen werden wir immer häufiger zu einem strategischen Bestandteil des Festivalkonzepts.  Locker Company regelt das. Immer.\n\n\n\n\n \nLocker Company A positive festival experience lies in the details. Visitors seek freedom, comfort and safety, while organisers look for smart solutions that contribute to a smooth and future-proof event operation. Locker Company brings these worlds together with innovative locker systems for festivals and events.  We specialise in providing flexible, scalable lockers that give visitors peace of mind, allowing them to fully enjoy the event. No hassle with bags or valuables—just carefree immersion in music, culture and experience. With our knowledge and experience, we help organisers improve visitor flow, reduce lost property and increase overall visitor satisfaction.  Locker Company works with smart technology and modular systems, making our lockers easy to deploy at both small-scale and large-scale festivals.  At Future of Festivals, we show why Locker Company is more than just a locker supplier. Through our services, products and integrations, we increasingly form a strategic part of the overall festival concept.  Locker Company takes care of it. Always."]
["https://futureoffestivals.com/exhibitors/loeschwagen-bierroboter/",{"$f":"HYPERLINK(A62)","v":"https://futureoffestivals.com/exhibitors/loeschwagen-bierroboter/"},"LöschWagen BierRoboter","Gewerbestrasse 5","5301 Eugendorf","Michael Breckner","mb@bhs.co.at","+436643388434","mb@bhs.co.at","http://www.löschwagen.com","http://www.löschwagen.com","LöschSystems Robotics entwickelt vollautomatisierte Robotiklösungen für den Getränkeausschank in Stadien, Arenen und Großevents. Mit dem LöschContainer BierRoboter kombinieren wir Robotik, KI und Cloud-Technologie, um Ausschankprozesse effizienter, nachhaltiger und personalunabhängig zu machen. Unser Ziel: die Zukunft der Eventgastronomie.\n\n\n\n\n \nLöschSystems Robotics develops fully automated robotic beverage solutions for stadiums, arenas and large events. Our LöschContainer BeerRobot combines robotics, AI and cloud technology to deliver fast, efficient and sustainable dispensing. We redefine event hospitality with scalable, highperformance automation."]
["https://futureoffestivals.com/exhibitors/losbergerdeboer-gmbh/",{"$f":"HYPERLINK(A63)","v":"https://futureoffestivals.com/exhibitors/losbergerdeboer-gmbh/"},"LosbergerDeBoer GmbH","Liebigstrasse 2","45663 Recklinghausen","Sascha Langner-Köhnlein","vermietung@losbergerdeboer.com","+491706300813","vermietung@losbergerdeboer.com","http://www.losbergerdeboer.com","http://www.losbergerdeboer.com","lorem ipsum\n\n\n\n\n \nlorem ipsum"]
["https://futureoffestivals.com/exhibitors/m4energy-eg-3/",{"$f":"HYPERLINK(A64)","v":"https://futureoffestivals.com/exhibitors/m4energy-eg-3/"},"M4Energy eG","Bertolt-Brecht-Allee 24","1309 Dresden","Toni Telle","kontakt@m4energy.de","+4915208101214","kontakt@m4energy.de","https://lights.m4energy.de/","https://lights.m4energy.de/","Mit M4Lights greifen Sie auf ein flexibles, nachhaltiges und sofort einsatzbereites Lichtsystem zurück — perfekt für Kunden, die Wert auf Umweltfreundlichkeit, Einfachheit und moderne Lichtlösungen legen. Egal ob für Events, öffentliche Flächen, Gewerbe, private Anlagen oder temporäre Einsätze: M4Lights ist der nachhaltige Weg, Räume und Orte ins rechte Licht zu rücken.\n\n\n\n\n \nWith M4Lights, you gain access to a flexible, sustainable, and instantly deployable lighting system — perfect for customers who value environmental friendliness, simplicity, and modern lighting solutions. Whether for events, public spaces, commercial areas, private properties, or temporary applications: M4Lights is the sustainable way to illuminate spaces and locations effectively."]
["https://futureoffestivals.com/exhibitors/marvin-puchmeier-stiftung/",{"$f":"HYPERLINK(A65)","v":"https://futureoffestivals.com/exhibitors/marvin-puchmeier-stiftung/"},"Marvin-Puchmeier-Stiftung","Schwarzwaldstr. 106","70569 Stuttgart","Ralf-J. Puchmeier","info@marvin-puchmeier-stiftung.de","+4971128448274","info@marvin-puchmeier-stiftung.de","https://www.marvin-puchmeier-stiftung.de","https://www.marvin-puchmeier-stiftung.de","Marvin Puchmeier wurde am 21. Februar 2017 im Alter von nur 19 Jahren bei einem unverschuldeten Arbeitsunfall in der Hanns-Martin-Schleyer-Halle aus dem Leben gerissen. Ihm wurde die Chance genommen, sein Leben zu leben und die Welt mitzugestalten. In Erinnerung an Marvin wurde die Marvin-Puchmeier-Stiftung gegründet. Sie unterstützt benachteiligte Kinder und Jugendliche, eröffnet neue Chancen und fördert ihre Entfaltung. Der Leitspruch „Keiner darf verloren gehen“ begleitet und motiviert unsere Stiftungsarbeit täglich.\n\n\n\n\n \nMarvin Puchmeier was taken from life on February 21, 2017, at the age of just 19, due to an unforeseen workplace accident at the Hanns-Martin-Schleyer Hall. He was denied the chance to live his life and make a lasting impact on the world. In his memory, the Marvin Puchmeier Foundation was established. It supports disadvantaged children and young people, opens up new opportunities, and encourages personal development. The guiding principle “No one must be lost inspires and motivates our work every day."]
["https://futureoffestivals.com/exhibitors/mietzaeune-de-gmbh/",{"$f":"HYPERLINK(A66)","v":"https://futureoffestivals.com/exhibitors/mietzaeune-de-gmbh/"},"Mietzäune.de GmbH","Am Dürrbachgraben 26","1945 Ruhland","Cindy Peters","info@mietzäune.de","+493575294900","info@mietzu00e4une.de","https://www.xn--mietzune-4za.de/","https://www.xn--mietzune-4za.de/","Mietzäune.de GmbH ist ein deutsches Unternehmen mit Sitz in Ruhland (Brandenburg), das auf Vermietung und Bereitstellung von Absperrtechnik und Zäunen spezialisiert ist. Neben tausenden Metern von Bauzäunen können Luxemburger, Bühnengitter sowie Polizeigitter gestellt werden. Dies ist nur eine kleiner Auszug des Portfolios.  Das Team von Mietzäune.de kümmert sich um die professionelle Absperrtechnik deiner Veranstaltung. Von der ersten Beratung bis zum Abbau. Gemäß dem Motto „Alles aus einer Hand!“, müssen sich Kunden keine zusätzlichen Gedanken um Lieferung und Manpower machen.\n\n\n\n\n \nMietzäune.de GmbH is a German company based in Ruhland (Brandenburg) that specializes in the rental and provision of barrier technology and fences. In addition to thousands of meters of construction fences, Luxembourg barriers, stage barriers, and police barriers can also be provided. This is just a small excerpt of the portfolio. The team at Mietzäune.de takes care of the professional barrier technology for your event. From the initial consultation to the dismantling. Following the motto 'Everything from a single source!', customers don't have to worry about delivery and manpower."]
["https://futureoffestivals.com/exhibitors/mojo-rental-germany-gmbh/",{"$f":"HYPERLINK(A67)","v":"https://futureoffestivals.com/exhibitors/mojo-rental-germany-gmbh/"},"MOJO Rental Germany GmbH","Faer-Castell-Straße 11-20","90602 Pyrbaum","Thorsten Becker","germany@mojorental.com","+4915254021518","germany@mojorental.com","https://www.mojorental.de/",{"$f":"HYPERLINK(J67)","v":"https://www.mojorental.de/"},"MOJO Rental weltweit  – Eventinfrastruktur aus einer Hand: Wir liefern Barrieren, Bodenschutz, Bühnen und Full-Service-Logistik für Live-Entertainment, Sport, Behörden und Unternehmen.\n\n\n\n\n \nMOJO Rental worldwide – event infrastructure from a single source: We provide barriers, ground protection, stages, and full-service logistics for live entertainment, sports, public authorities, and businesses."]
["https://futureoffestivals.com/exhibitors/moot-upcycling-gmbh/",{"$f":"HYPERLINK(A68)","v":"https://futureoffestivals.com/exhibitors/moot-upcycling-gmbh/"},"MOOT Upcycling GmbH","Juliusstraße 64","12051 Berlin","Marc Fleming","info@moot.eco","+4917641350310","info@moot.eco","https://www.moot.studio","https://www.moot.studio","Vorstellungstext folgt\n\n\n\n\n \nVorstellungstext folgt"]
["https://futureoffestivals.com/exhibitors/nebelhelden-gmbh-2/",{"$f":"HYPERLINK(A69)","v":"https://futureoffestivals.com/exhibitors/nebelhelden-gmbh-2/"},"nebelhelden GmbH","Rudolf Heinz Straße 10","7092 Winden/See","Sascha Kilian","office@nebelhelden.at","+4366488410231","office@nebelhelden.at","https://nebelhelden.at/","https://nebelhelden.at/","Nebelhelden – Bei Hitze fliegen wir ein.  Wir sind Spezialisten für Hochdruck-Nebelanlagen im Event-, Gastro- und Privatbereich. Mit feinstem, trockenem Wassernebel kühlen wir bis zu –10 C, schaffen sichere Bedingungen – und machen Marken sichtbar, bevor Hitze zum Stress wird.  Unser Highlight: mobile Nebel-Cooling-Units – der Unicorncooler. Flexibel einsetzbar, sauber, effizient und jetzt auch für die Nacht: mit LED-Beleuchtung und integriertem 8-Zoll-Display für starke Markenmomente mitten im Eventgeschehen.  Wir reduzieren Hitzebelastung, bevor sie passiert – sichtbar, sympathisch, wirksam.\n\n\n\n\n \nNebelhelden – When heat strikes, we fly in.  We specialize in high-pressure mist cooling systems for events, gastronomy, and private spaces. With ultra-fine, dry mist we reduce temperatures by up to 10C, create safer conditions, and boost brand visibility before heat becomes a problem.  Our highlight: mobile mist-cooling units – the Unicorncooler. Flexible, clean, efficient, and now also built for night operations: featuring LED lighting and an integrated 8-inch display for powerful brand moments right in the heart of the event.  We reduce heat stress before it happens – visible, friendly, effective."]
["https://futureoffestivals.com/exhibitors/no-risk-insurance/",{"$f":"HYPERLINK(A70)","v":"https://futureoffestivals.com/exhibitors/no-risk-insurance/"},"No Risk Insurance","Haarlemmerweg 317 K","1051 LG Amsterdam","Brent Zaal","Brent@norisk.eu","+31202250069","Brent@norisk.eu","http://www.norisk.eu","http://www.norisk.eu","No Risk is  specialized Insurance Company focused on the events, entertainment and film industries.\n\n\n\n\n \nNo Risk is  specialized Insurance Company focused on the events, entertainment and film industries."]
["https://futureoffestivals.com/exhibitors/one-two-beer/",{"$f":"HYPERLINK(A71)","v":"https://futureoffestivals.com/exhibitors/one-two-beer/"},"One Two Beer","Im Flürchen 10","56412 Oberelbert","Oliver Schwan","oliver@mff-schanktechnik.de","+491732820471","oliver@mff-schanktechnik.de","https://mff.events/","https://mff.events/","Die Bierschnellzapfanlagen von One Two Beer stehen für maximale Effizienz und Wirtschaftlichkeit. Entwickelt für Großveranstaltungen wie Festivals, für Stadien oder Konzerte ermöglichen sie höchsten Ausschank bei minimalem Personaleinsatz. Per Knopfdruck wird perfekt temperiertes Bier gezapft – ohne Wartezeiten, ohne Schankverlust, ohne Schaumverlust und ohne Vorkenntnisse. Mobil oder stationär einsetzbar, passen sich die Systeme flexibel jeder Veranstaltung an und sorgen für reibungslose Abläufe und höheren Effizienz und Umsätze.\n\n\n\n\n \nOne Two Beers high-speed dispensing systems stand for maximum efficiency and cost-effectiveness. Designed for large-scale events such as festivals, stadiums, and concerts, they deliver the highest pouring volumes with minimal staffing requirements. At the push of a button, perfectly chilled beer is dispensed — without waiting times, product loss, foam loss, or the need for prior experience. Available in mobile or stationary configurations, the systems adapt flexibly to any event, ensuring smooth operations, greater efficiency, and increased revenue."]
["https://futureoffestivals.com/exhibitors/opt-ondemand-sro/",{"$f":"HYPERLINK(A72)","v":"https://futureoffestivals.com/exhibitors/opt-ondemand-sro/"},"OPT OnDemand sro","U Pruhonu 13a","170 00 Prague","Iris Vogt","info@optpndemand.com","+4369910871799","info@optpndemand.com","http://www.optondemand.com","http://www.optondemand.com","OPT OnDemand s.r.o. ist das europäische Merch-Hub für Artists, Labels und Marken. Von Produktion und Veredelung über Lagerung bis Versand liefert OPT skalierbare End-to-End-Lösungen. Mit deiner operativen Präsenz vor Ort wird höchste Servicequalität, nachhaltige Prozessstabilität und globale Vernetzung sichergestellt – IHR MERCH: einfach, effizient und professionell.\n\n\n\n\n \nOPT OnDemand s.r.o. is the European merch hub for artists, labels, and brands. From production and customization to storage and shipping, OPT offers tailor-made solutions. Fast, sustainable, and globally connected – we make merchandise simple, efficient, and professional."]
["https://futureoffestivals.com/exhibitors/orange-box-network/",{"$f":"HYPERLINK(A73)","v":"https://futureoffestivals.com/exhibitors/orange-box-network/"},"ORANGE-BOX.network","Bödekerstr. 67","30161 Hannover","Jan Kirchhoff","info@orange-box.network","+49175151656","info@orange-box.network","https://orange-box.network","https://orange-box.network","Vorstellungstext folgt\n\n\n\n\n \nVorstellungstext folgt"]
["https://futureoffestivals.com/exhibitors/orderbird-gmbh/",{"$f":"HYPERLINK(A74)","v":"https://futureoffestivals.com/exhibitors/orderbird-gmbh/"},"orderbird GmbH","Ritterstraße 12","10969 Berlin","Sophie Roessler","hello@orderbird.com","+491721383733","hello@orderbird.com","https://www.orderbird.com/de","https://www.orderbird.com/de","wird noch erstellt von Mkt\n\n\n\n\n \nwird noch erstellt von Mkt"]
["https://futureoffestivals.com/exhibitors/otr-on-the-rocks-gmbh/",{"$f":"HYPERLINK(A75)","v":"https://futureoffestivals.com/exhibitors/otr-on-the-rocks-gmbh/"},"OTR On The Rocks GmbH","August-Borsig-Straße 8","50126 Bergheim","Carola Sessler","info@otr-ontherocks.com","+4915114100047","info@otr-ontherocks.com","https://www.frank-frost.com/","https://www.frank-frost.com/","Frank Frost ist ein führender Hersteller von hochwertigem Eis, spezialisiert auf Double Frozen Vierkanteiswürfel ohne Hohlraum, die besonders langlebig und qualitativ hochwertig sind. Um die Lieferung und Lagerung von Eis effizienter zu gestalten, hat das Unternehmen die Ice Caddy-Lösung entwickelt, eine innovative Methode, bei der Eis nicht mehr in Beuteln, sondern in einem isolierten Behälter transportiert und gelagert wird. Der Ice Caddy bietet zahlreiche Vorteile, besonders für den Einsatz auf Festivals und großen Events. Durch seine doppelt isolierte Konstruktion hält er das Eis bis zu 72 Stunden kühl, sodass sich Veranstalter keine Sorgen über die Eisqualität während mehrtägiger Veranstaltungen machen müssen. Ein integriertes Tauwasserablaufsystem sorgt dafür, dass überschüssiges Schmelzwasser effizient abgeführt wird, wodurch das Eis nicht verwässert und in bester Qualität bleibt. Darüber hinaus ist der Ice Caddy mit einem Rollen-System ausgestattet, das eine hohe Mobilität gewährleistet. So lässt sich der Caddy problemlos an unterschiedliche Einsatzorte auf Festivals und Events verschieben. Mit einem Füllvermögen von 50 kg bietet der Ice Caddy ausreichend Kapazität für große Veranstaltungen, bei denen eine konstante Eisversorgung erforderlich ist. Diese Flexibilität und die lange Kühlwirkung machen den Ice Caddy zu einer idealen Lösung für Festivals, bei denen die Lagerung und Lieferung von Eis eine zentrale Rolle spielen. Der Ice Caddy reduziert nicht nur den logistischen Aufwand, sondern auch den Verbrauch von Einwegplastik, da keine Eisbeutel mehr benötigt werden. Dadurch wird der Umweltgedanke bei der Eisversorgung gestärkt. Mit der Ice Caddy Lösung setzt Frank Frost neue Maßstäbe in der Eislogistik und bietet eine nachhaltige, praktische und zuverlässige Möglichkeit, Eis bei Veranstaltungen jeder Größe bereitzustellen.\n\n\n\n\n \nFrank Frost is a leading manufacturer of high-quality ice, specializing in Double Frozen Square Ice Cubes without air pockets, which are especially durable and of premium quality. To make the delivery and storage of ice more efficient, the company has developed the Ice Caddy solution, an innovative method of transporting and storing ice in an insulated container instead of traditional bags. The Ice Caddy offers numerous advantages, particularly for use at festivals and large events. Its double-insulated design keeps the ice cold for up to 72 hours, ensuring that event organizers dont have to worry about ice quality during multi-day events. An integrated water drainage system efficiently removes excess meltwater, preventing the ice from becoming watered down and maintaining its best quality. Additionally, the Ice Caddy is equipped with a rolling system, making it highly mobile and allowing it to be easily moved to different locations at festivals and events. With a capacity of 50 kg, the Ice Caddy provides sufficient storage for large events that require a constant supply of ice. This flexibility and long-lasting cooling power make the Ice Caddy the ideal solution for festivals, where storing and supplying ice is a central concern. The Ice Caddy not only reduces logistical effort but also cuts down on single-use plastic, as ice bags are no longer needed. This strengthens the environmental aspect of ice supply. With the Ice Caddy solution, Frank Frost sets new standards in ice logistics, offering a sustainable, practical, and reliable way to provide ice at events of any size."]
["https://futureoffestivals.com/exhibitors/paylogic-see-tickets-gmbh/",{"$f":"HYPERLINK(A76)","v":"https://futureoffestivals.com/exhibitors/paylogic-see-tickets-gmbh/"},"Paylogic | See Tickets GmbH","Pfuelstrasse 5","10997 Berlin","Christoph von Gablenz","info@paylogic.de","+491735438355","info@paylogic.de","https://www.paylogic.de","https://www.paylogic.de","Vorstellungstext folgt\n\n\n\n\n \nVorstellungstext folgt"]
["https://futureoffestivals.com/exhibitors/planmyfestival-co/",{"$f":"HYPERLINK(A77)","v":"https://futureoffestivals.com/exhibitors/planmyfestival-co/"},"planmyfestival.co","Marienburger Str. 61b","81929 München","Obaid Rahimi","hello@planmyfestival.co","+4917625592360","hello@planmyfestival.co","https://www.planmyfestival.co","https://www.planmyfestival.co","Plan your dance, music or speaker festival. The most user friendly festival planning tool. Manage your event revenue, costs, artists, and logistics – all in one platform.\n\n\n\n\n \nPlan your dance, music or speaker festival. The most user friendly festival planning tool. Manage your event revenue, costs, artists, and logistics – all in one platform."]
["https://futureoffestivals.com/exhibitors/pmy-group/",{"$f":"HYPERLINK(A78)","v":"https://futureoffestivals.com/exhibitors/pmy-group/"},"PMY Group","Ground Floor, Unit 9 Coped Hall Business Park, Royal Wootton Bassett PMY Group","SN4 8DP Swindon","Claudia Balic","claudia.balic@pmygroup.com","+447585183349","claudia.balic@pmygroup.com","https://pmygroup.com/","https://pmygroup.com/","PMY partners with some of the worlds most iconic festivals and venues, including Glastonbury, Boomtown, Victorious, End of the Road Festival, and many more.  With decades of global experience, we help create smarter, safer, and more sustainable live environments.  Our expertise spans designing, delivering, and operating technology systems, AI-powered crowd intelligence, immersive AV, creative content, live production, and data-driven solutions - creating exceptional fan experiences while driving operational efficiency and long-term value.\n\n\n\n\n \nPMY Group transforms places where people gather. We are a global, full-service technology, intelligence, and fan-experience provider partnering with world-leading venues, events, destinations, and organisations. With decades of experience across 15+ countries, we deliver strategy, design, and day-to-day operations across the entire technology ecosystem through a vendor-agnostic approach.   We provide advisory services, strategic roadmaps, CTO-as-a-Service, and end-to-end cloud solutions across IaaS, PaaS, and SaaS. Our team designs and delivers Unified Data Platforms and large-scale AV infrastructure for leading global sporting and entertainment organisations.   In addition, our capabilities include AI-powered crowd intelligence through our proprietary platform, Optic, as well as creative motion content, VFX and post-production, event presentation, and live event production. Together, these solutions enhance and empower live environments while driving efficiency and long-term value.   Trusted by more than 1,000 clients, we help partners across sport and entertainment, stadiums and venues, education, the public sector, retail, and media unlock the full potential of their spaces and audiences.   Established in 2009, PMY has since expanded through the acquisition of leading companies including Etherlive, WJHW, Sports Data Services, True North Consulting Group, TechMedia, KOJO, and EVENT360."]
["https://futureoffestivals.com/exhibitors/purplex-gmbh/",{"$f":"HYPERLINK(A79)","v":"https://futureoffestivals.com/exhibitors/purplex-gmbh/"},"PurpleX GmbH","Petersburger Str. 38","10249 Berlin","Christian Lohse","hello@purplex.com","+491636856473","hello@purplex.com","https://www.purplex.com/","https://www.purplex.com/","PurpleX ist euer innovativer Partner für Cashless Payment, Einlass- / Zugangskontrollen und Crew / Besucher Tracking.\n\n\n\n\n \nPurpleX is your innovative partner für cashless payment, entrance / access controll and crew / attendee tracking."]
["https://futureoffestivals.com/exhibitors/rcf-germany-gmbh/",{"$f":"HYPERLINK(A80)","v":"https://futureoffestivals.com/exhibitors/rcf-germany-gmbh/"},"RCF Germany GmbH","Hansestraße 93","51149 Köln","Meike Schmitz","service@rcf.de","+4915170545500","service@rcf.de","https://www.rcf.de","https://www.rcf.de","TT+ Audio steht für die perfekte Verbindung aus italienischem Design und modernster Audiotechnologie. Aus dem Herzen Europas entwickeln wir Premium-Soundsysteme, die Konzerte, Festivals und Events jeder Größe mit beeindruckender Klarheit und Kraft zum Leben erwecken. Unser Portfolio umfasst leistungsstarke Line-Array-Systeme, Subwoofer und Punktquellenlautsprecher – konzipiert für die Anforderungen von Touring-Profis und Audio-Puristen. Jedes Produkt wird mit höchster Präzision, Langlebigkeit und einem kompromisslosen Anspruch an Klangqualität gefertigt. Mit TT+ Audio wird jede Performance zu einem eindrucksvollen Klangerlebnis – stilvoll, kraftvoll und unvergesslich.\n\n\n\n\n \nTT+ Audio stands for the perfect harmony of Italian design and cutting-edge audio engineering. From the heart of Europe, we develop premium sound systems that bring concerts, festivals, and events of any size to life with breathtaking clarity and power. Our portfolio features high-performance line array systems, subwoofers, and point source speakers—designed to meet the demands of touring professionals and audio perfectionists alike. Every product is crafted with attention to detail, durability, and sonic excellence. With TT+ Audio, every performance becomes an immersive sound experience—elegant, powerful, and unforgettable."]
["https://futureoffestivals.com/exhibitors/reality-ratio-ltd/",{"$f":"HYPERLINK(A81)","v":"https://futureoffestivals.com/exhibitors/reality-ratio-ltd/"},"Reality Ratio Ltd","Braefoot Avenue 32","G62 6JT Glasgow","Steven Duffy","info@realityratio.co.uk","+447967104253","info@realityratio.co.uk","http://www.realityratio.xyz","http://www.realityratio.xyz","Reality:Ratio - Digital Environments for the Events Industry\n\n\n\n\n \nWe scan spaces to aid planning, remote measurement,design and whole team collaboration in an interactive cloud based platform."]
["https://futureoffestivals.com/exhibitors/rentman/",{"$f":"HYPERLINK(A82)","v":"https://futureoffestivals.com/exhibitors/rentman/"},"Rentman","Drift 17","3512 BR Utrecht","Chloe","info@rentman.io","+31612093820","info@rentman.io","https://rentman.io/","https://rentman.io/","Rentman ist die Operations-Management-Plattform, die speziell entwickelt wurde, um Event- & Medienproduktionsteams zu unterstützen. Seit dem Launch 2015 hat sich Rentman von einer Lösung für das Mietmanagement zu einer umfassenden Plattform weiterentwickelt. Event- und Medienprofis können Angebote erstellen, Personal und Material planen, Kommunikation zentralisieren und Kosten kontrollieren. Mit professionellem Support erleichtert Rentman die Arbeit für mehr als 250.000 Nutzer in über 100 Ländern – für effizientere Abläufe und mehr Fokus auf das Wesentliche.\n\n\n\n\n \nRentman is the operations management platform built to support event & media production teams. Launched in 2015 with the aim of simplifying and streamlining rental management, Rentman has evolved into a full-service platform where event and media production professionals can create quotes, plan their crew and equipment, centralize communications, and control costs. With expert support every step of the way, Rentman does the heavy lifting so more than 250,000 professionals in over 100 countries can work more efficiently."]
["https://futureoffestivals.com/exhibitors/revo-union-kft/",{"$f":"HYPERLINK(A83)","v":"https://futureoffestivals.com/exhibitors/revo-union-kft/"},"Revo Union Kft","Soroksári út 123","1095 Budapest","Regina Megyeri","info@revounion.com","+36202168258","info@revounion.com","https://revounion.com/de","https://revounion.com/de","Introductory text to follow\n\n\n\n\n \nIntroductory text to follow"]
["https://futureoffestivals.com/exhibitors/riedel-communications-gmbh/",{"$f":"HYPERLINK(A84)","v":"https://futureoffestivals.com/exhibitors/riedel-communications-gmbh/"},"Riedel Communications GmbH","Uellendahler Straße 353","42109 Wuppertal","Alessandro Polla","info@riedel.net","+4915167356077","info@riedel.net","https://www.riedel.net/","https://www.riedel.net/","Riedel Communications ist ein führender Anbieter von Live-Produktionstools in den Bereichen Medien, Sport und Unterhaltung. Unsere Hard- und Softwarelösungen reichen von dezentralen Video- und Audionetzwerken über Intercom- und Replay-Lösungen bis hin zu WAN- und MPLS-Anwendungen. Dank unseres ganzheitlichen Ansatzes können unsere drei Geschäftsbereiche Product Division, Managed Technology Division und Networks Division starke Synergien nutzen, mit denen unsere Kunden selbst die komplexesten Projekte durchführen können - vor Ort, remote oder in der Cloud.\n\n\n\n\n \nRiedel Communications is a leading provider of live production tools in the worlds of media, sports and entertainment. Our hard- and software solutions span from distributed video and audio networks over intercom and replay solutions to WAN and MPLS applications. Thanks to our holistic approach, our three business units Product Division, Managed Technology Division and Networks Division can leverage powerful synergies to provide the infrastructures, tools and services for both fixed and temporary installations around the globe, enabling our customers to run even the most complex projects - on-site, remotely, or in the cloud."]
["https://futureoffestivals.com/exhibitors/rigging-service-gmbh/",{"$f":"HYPERLINK(A85)","v":"https://futureoffestivals.com/exhibitors/rigging-service-gmbh/"},"Rigging Service GmbH","Otto-Hahn-Straße 1-3","63225 Langen","Anna Belz","info@rigging-service.de","+4917642058825","info@rigging-service.de","https://www.rigging-service.de/","https://www.rigging-service.de/","Vorstellungstext folgt\n\n\n\n\n \nVorstellungstext folgt"]
["https://futureoffestivals.com/exhibitors/s-payment-gmbh/",{"$f":"HYPERLINK(A86)","v":"https://futureoffestivals.com/exhibitors/s-payment-gmbh/"},"S-Payment GmbH","Am Wallgraben 115","70565 Stuttgart","Ariane Rieger","vertrieb@s-payment.com","+491624950937","vertrieb@s-payment.com","http://www.s-payment.com","http://www.s-payment.com","Wir machen innovatives Payment erlebbar. Jetzt und in Zukunft. Die S-Payment GmbH, ein 100%-iges Tochterunternehmen der DSV-Gruppe, ist das Kompetenzcenter Payment der Sparkassen-Finanzgruppe. Hier werden federführend ganzheitliche, zielgruppen-spezifische und omnikanal-fähige Paymentlösungen für Privat- und Firmenkunden der Sparkassen entwickelt und vermarktet – sowohl für den Point of Sale (PoS) als auch für E- und M-Commerce. Dazu gehört unter anderem das kontaktlose Bezahlen mit Karten und dem Smartphone (App „Mobiles Bezahlen“ für Android sowie Apple Pay mit der Sparkasse). Zusätzlich etabliert sie die Payment-Lösungen der Sparkassen-Finanzgruppe in neuen Märkten (z. B. E-Mobilität, Connected Cars, Digitaler PoS) und entwickelt Mehrwertangebote, die den Sparkassen-Kunden beim Bezahlen zusätzliche individuelle Vorteile bieten.\n\n\n\n\n \nWe bring innovative payment to life. Now and in the future. S-Payment GmbH, a wholly-owned subsidiary of the DSV Group, is the payment competence centre of the Sparkassen-Finanzgruppe. It is responsible for developing and marketing holistic, target group-specific and omni-channel payment solutions for private and corporate customers of the savings banks - both for the PoS and for e- and m-commerce.   These include contactless payment with cards and smartphones (‘Mobiles Bezahlen app for Android and Apple Pay with Sparkasse). In addition, it establishes the payment solutions of the Sparkassen-Finanzgruppe in new markets (e.g. e-mobility, connected cars, digital PoS) and develops value-added offers that provide savings bank customers with additional individual benefits when making payments."]
["https://futureoffestivals.com/exhibitors/s-schlatter-sicherheitsberatung-2/",{"$f":"HYPERLINK(A87)","v":"https://futureoffestivals.com/exhibitors/s-schlatter-sicherheitsberatung-2/"},"S+ Schlatter Sicherheitsberatung","Schneckenburgstr. 11d","78467 Konstanz","Elnaz Amiraslani","Office@schlatter-sicherheitsberatung.de","+4917623521574","Office@schlatter-sicherheitsberatung.de","https://schlatter-sicherheitsberatung.de/","https://schlatter-sicherheitsberatung.de/","S+ Schlatter Sicherheitsberatung (ehemals IVVM) entwickelt ganzheitliche Strategien für sichere, reibungslose und rechtskonforme Veranstaltungen. Juristische Expertise, technisches Fachwissen und organisatorische Präzision verbinden sich zu 360-Lösungen für die strategische Planung, verlässliche Umsetzung und nachhaltige Weiterentwicklung von (Groß-Veranstaltungen). www.schlatter-sicherheitsberatung.de\n\n\n\n\n \n+ Schlatter Sicherheitsberatung (ehemals IVVM) entwickelt ganzheitliche Strategien für sichere, reibungslose und rechtskonforme Veranstaltungen. Juristische Expertise, technisches Fachwissen und organisatorische Präzision verbinden sich zu 360-Lösungen für die strategische Planung, verlässliche Umsetzung und nachhaltige Weiterentwicklung von (Groß-Veranstaltungen). www.schlatter-sicherheitsberatung.de"]
["https://futureoffestivals.com/exhibitors/sani-gmbh/",{"$f":"HYPERLINK(A88)","v":"https://futureoffestivals.com/exhibitors/sani-gmbh/"},"SANI GmbH","Winkelhörner Weg 2","24794 Borgstedt","Sören Gütschow","info@sani.de","+4915116221231","info@sani.de","https://www.sani.de","https://www.sani.de","Sanitäre Infrastruktur für Festivals und Events! Neben klassischen Sanitärcontainern und -wagen haben wir flexibel einsetzbare Sanitärmodule mit nachhaltiger Vakuum-Technik im Sortiment. Gerne bieten wir Ihnen auch Event-Dienstleistungen wie Frisch-/Abwasser-Management, Leitungsbau, Reinigung und Kassierung rund um unsere Sanitärstationen an. Nachhaltigkeit, Hygiene + Komfort: Nutzen Sie unsere hochwertigen Dusch-, WC- und Urinal-Module sowie Waschtische und Handicap-Dusch/WCs. Auch Hygiene/Trinkwasser-Stationen, UV-Desinfektionsanlagen für keimfreies Trinkwasser, Frisch-/Abwasserspeicher, Möbel (Betten, Spinde,…) und Handdesinfektions-Spender haben wir frisch aufbereitet. Treffen Sie uns auf der Future of Festivals in Berlin!\n\n\n\n\n \nSanitary infrastructure for festivals and events! In addition to classic sanitary containers and trailers, we offer flexible sanitary modules featuring sustainable vacuum technology. We also provide event services such as fresh/wastewater management, pipeline construction, cleaning, and admission handling around our sanitary stations. Sustainability, hygiene and comfort: make use of our high-quality shower, WC and urinal modules, washbasins, and accessible shower/WC units. We also supply hygiene and drinking water stations, UV disinfection systems for germ-free drinking water, fresh/wastewater tanks, furniture (beds, lockers, …) and hand sanitizer dispensers. Meet us at Future of Festivals in Berlin!"]
["https://futureoffestivals.com/exhibitors/scapeit-2/",{"$f":"HYPERLINK(A89)","v":"https://futureoffestivals.com/exhibitors/scapeit-2/"},"scape:it","Hansaring 79-81","50670 Köln","Julia Eisele","hello@scapeit.de","+4915157994079","hello@scapeit.de","https://scapeit.de","https://scapeit.de","Scape:it ist ein Unternehmen für Eventproduktion und Veranstaltungsmanagement mit Sitz im Herzen von Köln. Durch den Einsatz modernster Technik, detaillierter Planung und praxisnaher Umsetzung ermöglicht scape:it sichere, effiziente und erfolgreiche Events. Zum Leistungsportfolio zählen Lageplanung, Genehmigungsverfahren, Site-Production, Event-Operations und strategische Optimierung für Veranstalter.\n\n\n\n\n \nScape:it is an event production and event management company based in the heart of Cologne. Using state-of-the-art technology, detailed planning, and practical implementation, scape:it enables safe, efficient, and successful events. Its service portfolio includes location planning, approval procedures, site production, event operations, and strategic optimization for event organizers."]
["https://futureoffestivals.com/exhibitors/schaefer-produkte-gmbh/",{"$f":"HYPERLINK(A90)","v":"https://futureoffestivals.com/exhibitors/schaefer-produkte-gmbh/"},"Schäfer Produkte GmbH","Simonshöfchen 53","42327 Wuppertal","Boris Geppert","bge@spuelboy.de","+492026953232","bge@spuelboy.de","http://www.spuelboy.de","http://www.spuelboy.de","SPÜLBOY ist führend im Bereich manueller Kaltwasser-Gläserspülsysteme. Unsere Geräte reinigen hygienisch, nachhaltig und komplett stromlos. Ideal für Gastronomie, Events und mobile Einsätze. Zertifiziert nach DIN 6653-3:2023-08 und bewährt im Umgang mit Mehrwegbechern und Gläsern, überall dort, wo saubere Ergebnisse und Flexibilität gefragt sind.\n\n\n\n\n \nSPÜLBOY is a leading brand for manual cold-water glass and cup washers. Our systems clean hygienically, sustainably and without electricity. Ideal for gastronomy, events and mobile use. Certified according to DIN 6653-3 and proven for reusable cups and drinking glasses wherever flexibility and reliable hygiene are required."]
["https://futureoffestivals.com/exhibitors/seses-drinks-gmbh/",{"$f":"HYPERLINK(A91)","v":"https://futureoffestivals.com/exhibitors/seses-drinks-gmbh/"},"SESES DRINKS GmbH","Coburger Straße 7","96472 Rödental","Lars","info@seses-drinks.com","+4915161241307","info@seses-drinks.com","https://seses-drinks-gastro.com","https://seses-drinks-gastro.com","SESES DRINKS ist ein Getränkehersteller aus Coburg und spezialisiert auf Fruchtreduktionen für Festivals, Events und Gastronomie. Unsere Produkte bestehen ausschließlich aus Frucht und Kräutern – ohne Zusatzaromen oder Konservierungsstoffe. Damit entstehen Limonaden, Spritz, Cocktails und alkoholfreie Drinks schnell, konstant und effizient. Ideal für hohe Durchlaufzahlen am Tresen: einschenken, umrühren, fertig.\n\n\n\n\n \n**SESES DRINKS** is a beverage manufacturer from Coburg, specializing in fruit reductions for festivals, events, and gastronomy. Our products are made exclusively from fruit and herbs – without added flavors or preservatives. They enable fast, consistent, and efficient preparation of lemonades, spritz drinks, cocktails, and non-alcoholic options. Ideal for high-volume bars: pour, stir, serve."]
["https://futureoffestivals.com/exhibitors/sevenfour/",{"$f":"HYPERLINK(A92)","v":"https://futureoffestivals.com/exhibitors/sevenfour/"},"SevenFour","Hansaring 79-81","50670 Köln","Julia Eisele","info@seven-four.de","+4915157994079","info@seven-four.de","https://seven-four.de","https://seven-four.de","Innovative und sichere Bezahlsysteme für Festivals, kombiniert mit individuellen Wristbands, Lanyards und Pässen: SevenFour ist der zuverlässige Partner für Veranstalter, wenn es um effiziente Bezahloptionen und sichere Access Systeme auf ihren Events geht. Die anpassbaren Lösungen verbessern die Organisation und das Festivalerlebnis, während umfangreiche Verkaufsstatistiken präzise Analysenermöglichen – für effizientere und nachhaltigere Events weltweit.\n\n\n\n\n \nInnovative and secure payment systems for festivals, combined with personalized wristbands, lanyards, and passes: SevenFour is the reliable partner for event organizers when it comes to efficient payment options and safe access systems at their events. The customizable solutions improve organization and the festival experience, while comprehensive sales statistics enable precise analysis—for more efficient and sustainable events worldwide."]
["https://futureoffestivals.com/exhibitors/silutions-gmbh/",{"$f":"HYPERLINK(A93)","v":"https://futureoffestivals.com/exhibitors/silutions-gmbh/"},"Silutions GmbH","Lili-Braun Str. 54","23843 Bad Oldesloe","Arnd Reichow","info@silent-events.com","+4916097873794","info@silent-events.com","http://www.silent-events.com","http://www.silent-events.com","folgt\n\n\n\n\n \nfolgt"]
["https://futureoffestivals.com/exhibitors/simplepay-zrt/",{"$f":"HYPERLINK(A94)","v":"https://futureoffestivals.com/exhibitors/simplepay-zrt/"},"SimplePay Zrt.","Váci út 135-139.","1138 Budapest","Orsolya Sulyok","info@hellopay.hu","+36307906353","info@hellopay.hu","https://hellopay.hu","https://hellopay.hu","Together For Innovative Payment Solutions\n\n\n\n\n \nWe are pleased to announce that HelloPay is now part of SimplePay's innovative payment solutions. This move gives us the opportunity to make our electronic payment systems available to an even wider range of users and to make life easier for even more users.  SimplePay Zrt.'s existing services, such as the Simple app and SimplePay payment solutions, have already widely supported the needs of various businesses and merchants. Now HelloPay's systems will complement these services, so that visitors to restaurants, entertainment venues and festivals can also enjoy the convenience and security we offer. The acquisition of HelloPay fits perfectly with this innovative approach and further expands the fintech company's portfolio."]
["https://futureoffestivals.com/exhibitors/slt-medianet-gmbh/",{"$f":"HYPERLINK(A95)","v":"https://futureoffestivals.com/exhibitors/slt-medianet-gmbh/"},"SLT Medianet GmbH","Karlstr. 9","64589 Stockstadt","Sebastian Schurr","mail@slt-media.net","+4961587409321","mail@slt-media.net","https://slt-media.net","https://slt-media.net","Vorstellungstext folgt\n\n\n\n\n \nVorstellungstext folgt"]
["https://futureoffestivals.com/exhibitors/spreeprint-merchandise-gmbh-co-kg/",{"$f":"HYPERLINK(A96)","v":"https://futureoffestivals.com/exhibitors/spreeprint-merchandise-gmbh-co-kg/"},"Spreeprint Merchandise GmbH & Co. KG","Brunsbütteler Damm 116-118","13581 Berlin","Jonas Döbert","info@spreeprint.de","+493033001630","info@spreeprint.de","https://www.spreeprint.de/","https://www.spreeprint.de/","Spreeprint ist Ihr Partner für hochwertiges Merchandise und individuelle Textilveredelung. Seit 2008 entwickeln und produzieren wir maßgeschneiderte Merchandise-Kollektionen sowie Fashion- und Textillösungen für internationale Artists , Marken und Events.\n\n\n\n\n \nSpreeprint from Berlin is your partner for high-quality merchandise and custom textile finishing. Since 2008, we have been developing and producing tailored merchandise collections as well as fashion and textile solutions for international clients, brands, artists, and events"]
["https://futureoffestivals.com/exhibitors/ssk-security-gmbh-2/",{"$f":"HYPERLINK(A97)","v":"https://futureoffestivals.com/exhibitors/ssk-security-gmbh-2/"},"SSK Security GmbH","Am Dürrbachgraben 26","1945 Ruhland","Cindy Peters","peters@ssksecurity.de","+493575294900","peters@ssksecurity.de","http://www.ssksecurity.de","http://www.ssksecurity.de","SSK Security GmbH – Sicherheit ist kein Zufall. Seit 25 Jahren stehen wir für umfassende Sicherheitslösungen. Von Veranstaltungssicherheit über Objektschutz, Notrufzentrale und Revierdienste, Alarm- und Interventionsfahrten bis hin zu bewaffnetem Personenschutz – bei uns kommt alles aus einer Hand. Der Schlüssel zu unserem Erfolg: enge Zusammenarbeit mit unseren Kunden und die strategische Entwicklung individueller Sicherheitskonzepte – von der ersten Analyse bis zur Umsetzung.\n\n\n\n\n \nSSK Security GmbH – Security is no accident. For 25 years, we have stood for comprehensive security solutions. From event security and property protection to emergency call centers and patrol services, alarm and intervention response, and armed personal protection – we offer everything from a single source. The key to our success: close collaboration with our clients and the strategic development of customized security concepts – from initial analysis to implementation."]
["https://futureoffestivals.com/exhibitors/stager/",{"$f":"HYPERLINK(A98)","v":"https://futureoffestivals.com/exhibitors/stager/"},"Stager","Zomerhofstraat 82","3032 CM Rotterdam","Mike van Gaasbeek","info@stager.co","+31643020136","info@stager.co","https://stager.co","https://stager.co","Planungssoftware, Eventmarketing-Tools und ein Online-Ticketsystem, alles in einem. Stager bietet einen klaren Überblick in einem einzigen System, wodurch euer Team Zeit, Energie und Budget zurückgewinnt. Arbeitet enger zusammen, arbeitet smarter und verkauft mehr Tickets.\n\n\n\n\n \nPlanning software, event marketing tools and an online ticketing system, all in one. Stager offers a clear overview in one system, reclaiming your team's time, energy, and budget. Collaborate better, work smarter, and sell more tickets."]
["https://futureoffestivals.com/exhibitors/stageventure-friends-festival-experience/",{"$f":"HYPERLINK(A99)","v":"https://futureoffestivals.com/exhibitors/stageventure-friends-festival-experience/"},"Stageventure & Friends Festival Experience","Hansaring 79-81","50670 Köln","Julia Eisele","hello@stageventure.de","+4915157994079","hello@stageventure.de","https://stageventure.de/future-of-festivals/","https://stageventure.de/future-of-festivals/","Die Stageventure & Friends Festival Experience ist keine klassische Messestandfläche – sie ist ein Treffpunkt für alle, die Events lieben und weiterdenken wollen. Hier gehts um neue Konzepte, wichtige Kontakte und das gemeinsame Teilen unserer großen Festivalleidenschaft. Lerne unsere Marken Stageventure, SevenFour und scape:it und unsere Partner mit all ihren Facetten und Leistungen  kennen und nutze die Chance, unseren Experten vor Ort konkrete Fragen zu deinen Anliegen zu stellen.\n\n\n\n\n \nThe Stageventure & Friends Festival Experience is not a traditional trade fair stand — it's a meeting place for everyone who loves events and wants to think outside the box. It's all about new concepts, important contacts, and sharing our great passion for festivals. Get to know our brands Stageventure, SevenFour, and scape:it, as well as our partners, with all their services, and take the opportunity to ask our experts on site specific questions about your concerns."]
["https://futureoffestivals.com/exhibitors/stageventure-gmbh/",{"$f":"HYPERLINK(A100)","v":"https://futureoffestivals.com/exhibitors/stageventure-gmbh/"},"Stageventure GmbH","Hansaring 79-81","50670 Köln","Julia Eisele","hello@stageventure.de","+4915157994079","hello@stageventure.de","https://stageventure.de/","https://stageventure.de/","Bereit, dein Event auf das nächste Level zu heben? Dann zünde gemeinsam mit Stageventure die Triebwerke dafür. Wir sind dein Full-Service-Dienstleister für die Stageproduction – vom Bühnendesign über den Dekobau bis zum finalen Bühnenbau. Im eingespielten Team verbinden wir die künstlerische Vision mit handwerklichem Können und sorgen dafür, dass jedes Event einzigartig und unvergesslich wird. Mit tiefem Verständnis für die Dynamik von Festivals und Events bilden wir dabei die Schnittstelle zwischen sämtlichen Gewerken und damit deine effiziente Mission Control bei der Stageproduction.\n\n\n\n\n \nWe turn events into adventures of superficial reality – together with creativity, precision and joy at work.  We are your full-service provider for stage production – from stage design and decoration construction to final stage construction.  As a well-coordinated team, we combine artistic vision with craftsmanship to ensure that every event is unique and unforgettable.  With a deep understanding of the dynamics of festivals and events, Stageventure acts as the interface between all trades and thus your efficient mission control for stage production."]
["https://futureoffestivals.com/exhibitors/stoffmotion-gmbh/",{"$f":"HYPERLINK(A101)","v":"https://futureoffestivals.com/exhibitors/stoffmotion-gmbh/"},"STOFFMOTION GmbH","Kliebertstraße 7","97072 Würzburg","Julian Gopp","info@stoffmotion.de","+491731689360","info@stoffmotion.de","http://www.stoffmotion.de/","http://www.stoffmotion.de/","STOFFMOTION ist eine Fullservice-Agentur für Festivals und eine Textildruck- und Merchandise-Manufaktur aus Würzburg. Wir begleiten Festivals von der Idee bis zum fertigen Produkt. Fokus: hochwertiger Druck, nachhaltige Materialien, klare Designs und Content-Denken. Zusätzlich produzieren wir Foto- und Video-Content für Social Media und Kampagnen. STOFFMOTION verbindet Handwerk, Marke und Storytelling zu Merch und Content, der getragen und gesehen wird. Von Kleinserien bis Kampagnen, schnell, praxisnah und ohne Bullshit.\n\n\n\n\n \nSTOFFMOTION is a full-service agency for festivals and a textile printing and merchandise manufacturer based in Würzburg. We support festivals from the first idea to the final product. Focus: high-quality printing, sustainable materials, clear designs and content-driven thinking. We also produce photo and video content for social media and campaigns. STOFFMOTION combines craftsmanship, brand and storytelling into merchandise and content that is worn, seen and remembered. From small batches to full campaigns – fast, practical and without bullshit."]
["https://futureoffestivals.com/exhibitors/studio-dicro-dosis-reiter-ouso-gbr-2/",{"$f":"HYPERLINK(A102)","v":"https://futureoffestivals.com/exhibitors/studio-dicro-dosis-reiter-ouso-gbr-2/"},"Studio Dicro Dosis (Reiter & Ouso GbR)","Frankfurter Allee 7","10247 Berlin","Janosch Reiter","dicro.dosis@gmail.com","+491606206935","dicro.dosis@gmail.com","https://www.dicrodosis.com/","https://www.dicrodosis.com/","Dicro Dosis ist ein Berliner Kunst- und Designstudio für Sculptural Light Art. Wir kreieren dreidimensionale Lichtskulpturen für Veranstaltungen, Festivals, Galerien und Corporate Contexts. In unserer Arbeit verschmelzen organische und geometrische Formen mit analogem Handwerk und digitalen Fertigungstechniken. Verschiedene Lichtarten – Tages- wie auch Kunstlicht – lassen unsere Werke Räume lebendig werden.\n\n\n\n\n \nDicro Dosis is a Berlin-based art and design studio specializing in Sculptural Light Art. We create three-dimensional light sculptures for events, festivals, galleries, and corporate contexts. Our work merges organic and geometric forms with traditional craftsmanship and digital fabrication. Different kinds of light – natural as well as artificial – make our pieces bring spaces to life."]
["https://futureoffestivals.com/exhibitors/test-4/",{"$f":"HYPERLINK(A103)","v":"https://futureoffestivals.com/exhibitors/test-4/"},"TEST","DE","TEST TEST","+4903062938871","Unternehmensprofil","","--",null,""]
["https://futureoffestivals.com/exhibitors/test-test-hallo-slack-2/",{"$f":"HYPERLINK(A104)","v":"https://futureoffestivals.com/exhibitors/test-test-hallo-slack-2/"},"test test hallo slack","Lindstedtstraße","14469 Potsdam","Paul, maerten","paul@futureoffestivals.com","+49 15255138303","--",null,""]
["https://futureoffestivals.com/exhibitors/textilwahn-pm-gmbh/",{"$f":"HYPERLINK(A105)","v":"https://futureoffestivals.com/exhibitors/textilwahn-pm-gmbh/"},"TEXTILWAHN PM GmbH","Am Handwerkerhof 3","51379 Leverkusen","Patrick Moschall","patrick@textilwahn.com","+491777870981","patrick@textilwahn.com","https://textilwahn.com","https://textilwahn.com","TEXTILWAHN entwickelt und produziert hochwertiges Merchandise für Festivals, Brands und Events. Von der Idee bis zur Auslieferung denken wir Merch als Prozess: effizient, zuverlässig und skalierbar. Mit eigener Veredelung in Deutschland und starken Produktionspartnern weltweit realisieren wir Sonderproduktionen, große Auflagen und smarte Giveaways – auch wenn es kurzfristig wird.\n\n\n\n\n \nTEXTILWAHN develops and produces high-quality merchandise for festivals, brands and events. From idea to delivery, we treat merch as a process: efficient, reliable and scalable. With in-house finishing in Germany and strong production partners worldwide, we handle custom productions, large volumes and smart giveaways – even on tight deadlines."]
["https://futureoffestivals.com/exhibitors/ticketpay-europe-gmbh/",{"$f":"HYPERLINK(A106)","v":"https://futureoffestivals.com/exhibitors/ticketpay-europe-gmbh/"},"TicketPAY Europe GmbH","Herbert-Rust-Weg 27","59071 Hamm","Frederick Papies","frederick.papies@ticketpay.de","+4923813389812","frederick.papies@ticketpay.de","https://www.ticketpay.de/","https://www.ticketpay.de/","ticketpay ist ein Ticketing- und Einlasssystem für die Festivalbranche. Von Online-Ticketing und integriertem Resale über Akkreditierung bis hin zu Einlassmanagement mit Scannern und Drehkreuzen bildet ticketpay zentrale Prozesse rund um den Festivalbetrieb ab. Schnittstellen zu Marketing- und Cashless-Systemen sowie Live-Daten sorgen für transparente Abläufe und stabile Infrastruktur auf dem Gelände.\n\n\n\n\n \nticketpay is a ticketing and access management system for the festival industry. From online ticketing and an integrated resale solution to accreditation and on-site access control with scanners and turnstiles, ticketpay covers all core festival processes. Interfaces to marketing and cashless systems, combined with live data insights, ensure transparent operations and a stable on-site infrastructure."]
["https://futureoffestivals.com/exhibitors/ticketshop/",{"$f":"HYPERLINK(A107)","v":"https://futureoffestivals.com/exhibitors/ticketshop/"},"TicketShop+","Hauptstraße^ 162","63768 Hösbach","Annemarie Schauer","shop@ticketshop-plus.de","+4960213273520","shop@ticketshop-plus.de","https://ticketshop-plus.de/de/","https://ticketshop-plus.de/de/","Eine echte TicketFLATRATE - ohne Systemgebühren. Wir sind kein klassischer Ticketdienstleister. Statt Verkaufsprovisionen oder versteckten Gebühren setzen wir auf ein transparentes Flatratemodell: eine faire Lizenz, die euch Planungssicherheit gibt. Ihr wisst genau, was auf euch zukommt - ohne böse Überraschungen: transparent, planbar und leistungsstark. Mit über 15 Jahren Erfahrung in der Event- und Festivalbranche bieten wir euch individuelle White-Label-Plattformlösungen rund um Ticketing, Merchandise, CMS, POS/Kassensysteme, Warenwirtschaft und Einlass. Unsere Technologie arbeitet im Hintergrund – ihr verkauft im eigenen Namen, auf eurer eigenen Plattform, und behaltet dabei die volle Kontrolle. Und damit euer Postfach ruhig bleibt: Ein KI-gestützter Chatbot übernimmt den Support direkt in eurem Shop – rund um die Uhr. 100 % vom Ticketumsatz inklusive Vorverkaufsgebühren landen direkt auf eurem Konto. Volle Transparenz, volle Freiheit, volle Power für eure Veranstaltung.\n\n\n\n\n \nA fair flat rate for tickets – with no system fees. Were not a traditional ticketing provider. Instead of sales commissions or hidden charges, we offer a transparent flat-rate model: a fair license that gives you full planning security. You always know exactly what to expect – no unpleasant surprises. Transparent, predictable, and powerful. With more than 15 years of experience in the event and festival industry, we deliver customized white-label platform solutions for ticketing, merchandise, CMS, POS/cash systems, inventory management, and access control. Our technology runs quietly in the background – you sell under your own name, on your own platform, and retain full control. And to keep your inbox quiet, an AI-powered chatbot handles customer support directly in your shop – 24/7. 100% of ticket sales, including advance booking fees, go directly into your account. Full transparency. Full freedom. Full power for your event."]
["https://futureoffestivals.com/exhibitors/tovar-rental-mobile-energy-gmbh-co-kg/",{"$f":"HYPERLINK(A108)","v":"https://futureoffestivals.com/exhibitors/tovar-rental-mobile-energy-gmbh-co-kg/"},"Tovar Rental | Mobile Energy GmbH & Co. KG","Haus Uhlenkotten 40","48159 Münster","Nicola Prahl","kontakt@tovar.ms","+4915207777134","kontakt@tovar.ms","https://www.tovar-group.de","https://www.tovar-group.de","Ihr Spezialist für temporäre Infrastruktur auf Veranstaltungen und mobilen Zufahrtschutz. Unsere zertifizierten, Modularen Systeme bieten wirksame Sicherheit – flexibel und ohne bauliche Maßnahmen. Als Full-Service-Partner übernehmen wir Logistik, sorgen für die Planung sowie Auf- und Abbau aus einer Hand für einen reibungslosen Ablauf.\n\n\n\n\n \nYour specialist for temporary infrastructure at events and mobile access control. Our certified, modular systems offer effective security – flexible and without structural modifications. As a full-service partner, we handle logistics, planning, setup, and dismantling from a single source for a smooth process."]
["https://futureoffestivals.com/exhibitors/univelop-gmbh/",{"$f":"HYPERLINK(A109)","v":"https://futureoffestivals.com/exhibitors/univelop-gmbh/"},"Univelop GmbH","Fraunhoferstraße 3","25524 Itzehoe","Christof Jaspersen","info@univelop.de","+4915128745790","info@univelop.de","https://www.univelop.de/","https://www.univelop.de/","Univelop ist die No-Code-Plattform für modernes Festival- und Eventmanagement. Veranstalter steuern Akkreditierung, Catering, Dienstleister, Check-ins und Prozesse zentral in einem System – flexibel, digital und ohne Programmierkenntnisse. Änderungen lassen sich in Echtzeit umsetzen, live auswerten und an jedes Event anpassen. Ob kleines Event oder internationales Großfestival: Mit Univelop entsteht eine individuelle Eventsoftware – ohne Chaos, ohne Tool-Wildwuchs.\n\n\n\n\n \nUnivelop is a no-code platform for modern festival and event management. Organizers manage accreditation, catering, suppliers, check-ins and workflows in one central system – flexible, digital and without coding. Processes can be adjusted in real time, evaluated live and tailored to each event. From small events to large international festivals, Univelop enables custom event software – no chaos, no fragmented tools."]
["https://futureoffestivals.com/exhibitors/videotechnik-baer-gmbh/",{"$f":"HYPERLINK(A110)","v":"https://futureoffestivals.com/exhibitors/videotechnik-baer-gmbh/"},"Videotechnik Bär GmbH","Brühlstraße 42","88416 Ochsenhausen, Deutschland","Philip Bär","pb@video-baer.de","+49735291150","pb@video-baer.de","http://www.video-baer.de","http://www.video-baer.de","Wir sind der Spezialist im Bereich Videotechnik und Multimedia. Mit mehr als 1.500 Veranstaltungen pro Jahr und über 20 Jahren Erfahrung sind wir eine feste Größe in der Branche und zählen zu den Top-Anbietern in Europa. Wir beherrschen unser Business aus dem Effeff und realisieren Projekte jeder Größenordnung im In- und Ausland – absolut solide, zuverlässig und erfrischend unkompliziert.\n\n\n\n\n \nWe are specialists in video technology and multimedia. With over 1,500 events per year and more than 20 years of experience, we are a well-established name in the industry and one of the top providers in Europe. We know our business inside and out and realize projects of all sizes, both domestically and internationally – with absolute reliability, dependability, and refreshingly straightforward service."]
["https://futureoffestivals.com/exhibitors/viva-con-agua/",{"$f":"HYPERLINK(A111)","v":"https://futureoffestivals.com/exhibitors/viva-con-agua/"},"Viva con Agua","Schultzweg 4","20097 Hamburg","Elena Mante","wasser@vivaconagua.com","+4915202037652","wasser@vivaconagua.com","https://vivaconagua.org/","https://vivaconagua.org/","Viva con Agua unterstützt Wasserprojekte mit der Vision “WASSER FÜR ALLE – ALLE FÜR WASSER!. Wasser ist neben der Luft zum Atmen die Grundlage allen Lebens und ein zentrales Menschenrecht. Viva con Agua verfolgt die Vision, dass alle Menschen Zugang zu sauberem Trinkwasser, Hygieneeinrichtungen und sanitärer Grundversorgung bekommen. 703 Millionen Menschen weltweit haben keinen Zugang zu einer Basis-Versorgung mit sauberem Trinkwasser. Wir sind überzeugt, dass unsere Vision keine Utopie ist und sie noch innerhalb unserer Generation in die Realität umzusetzen ist. Dieses Ziel treibt uns an und ist Grundlage unseres Handelns!\n\n\n\n\n \nViva con Agua supports water projects with the vision “WATER FOR ALL – ALL FOR WATER!. Alongside the air we breathe, water is the basis of all life and a fundamental human right. Viva con Agua pursues the vision that all people should have access to clean drinking water, hygiene facilities, and basic sanitation. 703 million people worldwide do not have access to a basic supply of clean drinking water.  We are convinced that our vision is not a utopia and that it can be realized within our generation. This goal drives us and is the basis of our actions!"]
["https://futureoffestivals.com/exhibitors/walther-werke/",{"$f":"HYPERLINK(A112)","v":"https://futureoffestivals.com/exhibitors/walther-werke/"},"WALTHER-WERKE","Ramsener Str. 6","67304 Eisenberg","Melanie Immel","mail@walther-werke.de","+496351475223","mail@walther-werke.de","http://www.walther-werke.de","http://www.walther-werke.de","Vorstellungstext folgt\n\n\n\n\n \nVorstellungstext folgt"]
["https://futureoffestivals.com/exhibitors/wanderzirkus-e-v/",{"$f":"HYPERLINK(A113)","v":"https://futureoffestivals.com/exhibitors/wanderzirkus-e-v/"},"Wanderzirkus e.V.","Davenstedter Straße 102","30543 Hannover","Tom Müller","hallo@wanderzirkus.net","+4915771593980","hallo@wanderzirkus.net","https://wanderzirkus.net/","https://wanderzirkus.net/","Vorstellungstext folgt\n\n\n\n\n \nVorstellungstext folgt"]
["https://futureoffestivals.com/exhibitors/water-is-right-foundation/",{"$f":"HYPERLINK(A114)","v":"https://futureoffestivals.com/exhibitors/water-is-right-foundation/"},"Water Is Right Foundation","Im Stillen Winkel 10","45149 Essen","Oliver Schwan","oliver.schwan@waterisright.org","+491732820471","oliver.schwan@waterisright.org","https://waterisright.org/","https://waterisright.org/","Mobile, leitungsgebundene Trinkwasserautomaten für Festivals jeder Größe – Unsere WIR-Wasserautomaten versorgen seit Jahren zuverlässig Backstage- und Artist-Catering sowie Gastronomie, Bars und Infield mit gekühltem Trinkwasser. Betrieben werden sie von der gemeinnützigen Stiftung Water Is Right, die seit 2011 weltweit Wasser- und Sanitärprojekte umsetzt und diese u. a. durch solche Social-Business-Modelle finanziert.\n\n\n\n\n \nMobile, mains-connected drinking water dispensers for festivals of all sizes – our WIR water dispensers have been reliably supplying chilled drinking water for years to backstage and artist catering as well as to catering services, bars, and the infield. They are operated by the non-profit foundation Water Is Right, which has been implementing water and sanitation projects worldwide since 2011, partly financed through social business models like this one."]
["https://futureoffestivals.com/exhibitors/watershow-de-gmbh/",{"$f":"HYPERLINK(A115)","v":"https://futureoffestivals.com/exhibitors/watershow-de-gmbh/"},"Watershow.de GmbH","Siemensstr. 13","97855 Triefenstein","Mareike Eid","rental@watershow.de","+4993958788975","rental@watershow.de","https://watershow.de/","https://watershow.de/","Vorstellungstext folgt\n\n\n\n\n \nVorstellungstext folgt"]
["https://futureoffestivals.com/exhibitors/wayz-gmbh/",{"$f":"HYPERLINK(A116)","v":"https://futureoffestivals.com/exhibitors/wayz-gmbh/"},"Wayz GmbH","Kinzigstraße 15","10247 Berlin","Holger Wilke","info@wayz.de","+4917634551497","info@wayz.de","https://www.wayz.de","https://www.wayz.de","Introductory text to follow\n\n\n\n\n \nIntroductory text to follow"]
["https://futureoffestivals.com/exhibitors/weezevent-group/",{"$f":"HYPERLINK(A117)","v":"https://futureoffestivals.com/exhibitors/weezevent-group/"},"Weezevent Group","Friedrichstraße 155","10117 Berlin","Jana Franck","contact-de@weezevent.com","+491733587492","contact-de@weezevent.com","https://weezevent.com/de/","https://weezevent.com/de/","Die Weezevent Group ist Europas führender unabhängiger Anbieter von Eventtechnologie und bietet ein flexibles, skalierbares Ökosystem für Live-Events jeder Größe. Von Festivals, Konzerten und Sportclubs bis hin zu Konferenzen und Großveranstaltungen liefert die Gruppe eine All-in-one-Lösung für Ticketing, Cashless Payments, Zutrittskontrolle, Akkreditierung und Crew-Management. In Deutschland wird die Weezevent Group durch Weezevent und Weeztix vertreten und kombiniert lokale Marktexpertise mit leistungsstarker Technologie, um Veranstalter dabei zu unterstützen, unabhängig zu bleiben und herausragende Eventerlebnisse zu schaffen.\n\n\n\n\n \nThe Weezevent Group is Europes leading independent event technology provider, offering a flexible and scalable ecosystem for live events of all sizes. From festivals, concerts, and sports clubs to conferences and large-scale gatherings, the group delivers an all-in-one solution covering ticketing, cashless payments, access control, accreditation, and crew management. In Germany, the Weezevent Group is represented by Weezevent and Weeztix, combining strong local expertise with powerful technology to help organisers stay independent and create outstanding event experiences."]
["https://futureoffestivals.com/exhibitors/welzel-anlagen-gmbh/",{"$f":"HYPERLINK(A118)","v":"https://futureoffestivals.com/exhibitors/welzel-anlagen-gmbh/"},"Welzel Anlagen GmbH","Vördener Straße 111","49565 Bramsche","Tobias Reitmeyer","t.reitmeyer@welzel-anlagen.de","+4954689383922","t.reitmeyer@welzel-anlagen.de","https://www.paragu.de/de/","https://www.paragu.de/de/","Erleben Sie unvergessliche Events mit der innovativen Paragu Eventüberdachung! Unsere einzigartige Lösung schafft nicht nur eine aufregende Location, sondern auch die perfekte Atmosphäre für faszinierende Momente. Ob Festivals oder Firmenevent  – Paragu ermöglicht mit bis zu 25m Durchmesser durch eine modulare Bauweise in 10m-Schritten, Aufbauten bis zu 25x67m und mehr. Dank der hohen Dachlasten von bis zu 800 kg Punktlast können Sie selbst anspruchsvollste Installationen umsetzen. Lassen Sie Ihrer Kreativität freien Lauf – mit Paragu unvergesslichen Erlebnis schaffen!\n\n\n\n\n \nExperience unforgettable events with the innovative Paragu event canopy! Our unique solution not only creates an exciting venue but also the perfect atmosphere for captivating moments. Whether for festivals or corporate events, Paragu, with its modular construction in 10-meter increments and diameters up to 25 meters, allows for structures up to 25 x 67 meters and more.  Thanks to its high roof load capacity of up to 800 kg point load, you can implement even the most demanding installations. Unleash your creativity – create unforgettable experiences with Paragu!"]
["https://futureoffestivals.com/exhibitors/wir-kuemmern-uns-gug/",{"$f":"HYPERLINK(A119)","v":"https://futureoffestivals.com/exhibitors/wir-kuemmern-uns-gug/"},"Wir Kümmern Uns gUG","Gostenhofer Hauptstraße 23","90443 Nürnberg","Elnaz Amiraslani","Info@barrierefrei-feiern.de","+4915738795555","Info@barrierefrei-feiern.de","https://barrierefrei-feiern.de/","https://barrierefrei-feiern.de/","Unsere Beratungsagentur WIR KÜMMERN UNS - barrierefreier Veranstaltungsservice gUG vermittelt geschulte Expert*innen in eigener Sache, die Veranstaltende, Festivals, Kulturbetriebe, Kommunen, Kollektive, Vereine und Verbände bei der Entwicklung inklusiver Kulturstrategien beraten und begleiten.  Unsere Arbeit verbindet Selbstvertretung, Fachwissen und die Leidenschaft für Musik, Kunst und Kultur. Mit unserem interdisziplinären Team aus Expert*innen in eigener Sache entwickeln wir praxisnahe und erprobte Inklusionsstrategien für kleine und große Veranstaltungen. Unser Angebot reicht von Team-Schulungen und Prozessbegleitungen bis hin zu Services für Gäste mit Behinderung und Awareness Teams.\n\n\n\n\n \nOur Consulting Agency WIR KÜMMERN UNS – barrierefreier Veranstaltungsservice gUG connects trained experts in their own interest with event organisers, festivals, cultural institutions, municipalities, collectives, associations and networks to advise on and support the development of inclusive cultural strategies. Our work brings together self-advocacy, professional expertise, and a deep passion for music, art, and culture. With our interdisciplinary team of experts with disabilities, we develop practical, field-tested inclusion strategies for small-scale and large-scale events. Our services range from team training and process facilitation to on-site services for guests with disabilities and intersectional awareness teams."]
["https://futureoffestivals.com/exhibitors/zeppelin-rental-gmbh/",{"$f":"HYPERLINK(A120)","v":"https://futureoffestivals.com/exhibitors/zeppelin-rental-gmbh/"},"Zeppelin Rental GmbH","Düsterhauptstraße 12","13469 Berlin","Hardt, Oliver","oliver.hardt@zeppelin.com","+493040371614","oliver.hardt@zeppelin.com","https://www.zeppelin-rental.de/","https://www.zeppelin-rental.de/","Einleitungstext folgt\n\n\n\n\n \nEinleitungstext folgt"]
["https://futureoffestivals.com/exhibitors/zwergstadt/",{"$f":"HYPERLINK(A121)","v":"https://futureoffestivals.com/exhibitors/zwergstadt/"},"Zwergstadt","Fritz-Reuter-Str. 8","15344 Strausberg","Katinka Brundiers","kontakt@zwergstadt.de","+491775284652","kontakt@zwergstadt.de","https://zwergstadt.de","https://zwergstadt.de","Die Zwergstadt bietet wunderbunte Wohlfühlorte für Familien – in kleiner Variante hier in der Station und in groß auf Veranstaltungen deutschlandweit. Neben fachkundiger Crew überzeugen unsere Kinderspaces mit originellen Spielstationen und -aktionen: von Spielmobil, Bauvergnügen, Babyoase bis Bewegungsfreuden, Leselounge, Workshops, Kinderkulturprogramm und vielem mehr. Referenzen: Lollapalooza, Bundespresseamt, Vivawest Family Festival, Deutsches Museum München, Union Sommerfest u.v.\n\n\n\n\n \nZwergstadt creates colorful, feel-good spaces for families – small here at the station, large at events across Germany. Alongside our expert crew, children enjoy original play stations and activities: mobile play units, building fun, baby oases, movement games, reading lounges, workshops, childrens cultural programs, and more. References: Lollapalooza, Federal Press Office, Vivawest Family Festival, Deutsches Museum Munich, Union summer festival, and others."]